Workbook

Sheet Instructions
A2: We have selected data is complete Y (CELL G2) at the top of the screen for each tab that we have estimated or had information about please review each tab to ensure this is correct.
A3: 1. Data: In the first table please fill in the box for the percentage of renewable electricity your company uses; applicable if you bought any electricity with a Climate Change Levy Exemption Certificate, enter the percentage of your total electricity usage that the renewable electricity covers. The table below holds records of any cars or vans used by your company; these include vehicles used for commuting and vehicles used for your business. Enter a unique name for the vehicle and the engines equivalent carbon dioxide emissions in grams per kilometre, this information should be available through the vehicles manufacturer. Finally enter the percentage of waste vegetable oil used by any vehicles you have entered.
A5: 2. Elec Bills: This tab is for regular electricity bills. If you do not have a regular electricity bill you can simply flag the tab as complete without entering anything; you can estimate your electricity usage on the next tab. If you do have bills enter the meter reading at the beginning of your accounting period, then simply enter the dates of each bill and the meter reading on that date. If you share the electricity with other businesses, estimate the percentage used by your business and enter this in the column E.
A7: 3. Elec Use: If you do not have electricity bills you can estimate what your electricity use by listing the appliances you have in the office. Also if you do have bills but have some shared usage too, enter information into this tab as well as Elec Bills. Enter the information for each appliance to calculate its electricity use over the year. The percentage share box is for instances where appliances you use are also used by another business such as lights in a shared building atrium.
A9: 4. Gas Bills: Similar to the electricity bills tab, this tab is for regular gas bill information. If you do not have bills to reference, you can estimate your usage in the next tab. Firstly enter the meter reading at the beginning of your accounting period, then simply enter the dates of each bill and the meter reading. If you share the gas with other businesses, estimate the percentage used by your business and enter this in the column G.
A11: 5. Gas Est: This tab is used to estimate gas usage if bills are not available. Also if you do have bills but have some shared usage too, enter information into this tab as well. To determine how much gas you use, there are two methods, firstly the area method which involves entering your office size and how effective the building insulation is. A typical office space amount is 70 square feet per person. Secondly is the power method which involves entering the power of your heating system and how long the system is in operation during the year.
A13: 6. Public Trans: This tab is for recording journeys made using public transport, not including commuting. Each journey is recorded as one row. Enter the date, type of transport used and how far you travelled and the CO2e will be calculated for each journey.
A15: 7. Car and Van: If you use a car or van for your business, record the journeys made on this tab. This does not include commuting. Each journey is recorded as one row. Make sure to enter the correct car or van name that you entered into the Data tab otherwise the formula for calculating CO2e will not work.
A17: 8. Road Fuel: This tab is a simple recording of fuel used for business use. Each purchase of fuel is recorded as one row. Take some care not to double count – fuel used for journeys recorded on the previous sheet does not need to be recorded here as well. Enter the date, type of fuel and amount purchased.
A19: 9. Commute: The commute tab collects information regarding how each employee gets to work and back during the year. If cars are used, make sure the names of the cars entered into the Data tab are used. Enter the commuting distance for each day (to work and back again) followed by the regularity of the journey throughout the year and the transport type.
A21: 10. Water Bills: This tab works in the same way as the electricity and gas bills tabs. Enter in information from your water bills, if you do not have access to bills, you can estimate your usage in the next tab.
A23: 11. Water Est: If you do not have access to water bills then you can estimate your usage based on the number of employees and how much water the employees use.
A25: 12. Paper: This tab concerns how much paper is purchased for the business and whether any of that paper is recycled or not. Each paper purchase will be recorded as a row. Enter the date of purchases, percentage of recycled paper in the purchase and the total weight of the paper.
A27: 13. PV Solar: This tab is only applicable if your business uses photovoltaic solar panels to generate your own electricity.
A29: The Carbon Account: this is the results page. If any row is shown as “Data not complete” please go back to tab or tabs relevant to that source of carbon emissions to complete the data and select “yes” in cell G2. Once your results are displayed for the period you can save this as your carbon accounting record for that period. To prepare figures for a new period simply save a copy of the spreadsheet and enter the new details from the Data tab and each tab thereafter.

Sheet Factors (to hide) (hidden)
A1: Green Accountancy Carbon Accounting for Smaller Entities
A3: Factors used in the CO2 calculations
A4: Type | B4: Factor | C4: Units | D4: Expiry | E4: Document Name | F4: Tab | G4: Line name | H4: Notes
A5: Electricity generated - use | B5: 0.46219 | C5: kg CO2e/ kWh | D5: 2016-05-31 | E5: 150625 DCFCarbonFactors_25_6_2015_114853 | F5: UK electricity | G5: Electricity generated
A6: Electricity generated - WTT | B6: 0.06888 | C6: kg CO2e/ kWh | D6: 2016-05-31 | E6: 150625 DCFCarbonFactors_25_6_2015_114853 | F6: WTT- UK & overseas elec | G6: WTT- UK electricity (generation)
A7: T&D- UK electricity - use | B7: 0.03816 | C7: kg CO2e/ kWh | D7: 2016-05-31 | E7: 150625 DCFCarbonFactors_25_6_2015_114853 | F7: Transmission and distribution | G7: T&D- UK electricity
A8: T&D- UK electricity - WTT | B8: 0.00569 | C8: kg CO2e/ kWh | D8: 2016-05-31 | E8: 150625 DCFCarbonFactors_25_6_2015_114853 | F8: WTT- UK & overseas elec | G8: WTT- UK electricity (T&D)
A9: Electricity | B9: =SUM(B5:B8) -> 0.57492 | C9: kg CO2e/ kWh | H9: =+B9*900 -> 517.428
A10: Natural Gas - use | B10: 0.18445 | C10: kg CO2e/ kWh | D10: 2016-05-31 | E10: 150625 DCFCarbonFactors_25_6_2015_114853 | F10: Fuels | G10: Natural gas
A11: Natural Gas - WTT | B11: 0.02483 | C11: kg CO2e/ kWh | D11: 2016-05-31 | E11: 150625 DCFCarbonFactors_25_6_2015_114853 | F11: WTT- fuels | G11: Natural gas
A12: Natural Gas | B12: =SUM(B10:B11) -> 0.20928 | C12: kg CO2e/ kWh
A13: Burning Oil | B13: 2.53215 | C13: kg CO2e/ litre | D13: 2016-05-31 | E13: 150625 DCFCarbonFactors_25_6_2015_114853 | F13: Fuels | G13: Burning oil | H13: No WTT
A14: Coal | B14: =3065.265/1000 -> 3.065265 | C14: kg CO2e/ kg | D14: 2016-05-31 | E14: 150625 DCFCarbonFactors_25_6_2015_114853 | F14: Fuels | G14: Coal (domestic) | H14: Converted into kgs by / 1000, no WTT
A15: Wood logs | B15: =53.91/1000 -> 0.05391 | C15: kg CO2e/ kg | D15: 2016-05-31 | E15: 150625 DCFCarbonFactors_25_6_2015_114853 | F15: Bioenergy | G15: Wood logs | H15: Converted into kgs by / 1000
A16: Wood logs | B16: =52.14/1000 -> 0.05214 | C16: kg CO2e/ kg | D16: 2016-05-31 | E16: 150625 DCFCarbonFactors_25_6_2015_114853 | F16: WTT - Bioenergy | G16: Wood logs | H16: Converted into kgs by / 1000
A17: Wood | B17: =SUM(B15:B16) -> 0.10605 | C17: kg CO2e/ kg
A19: Diesel | B19: 2.67614 | C19: kg CO2e/ litre | D19: 2016-05-31 | E19: 150625 DCFCarbonFactors_25_6_2015_114853 | F19: Fuels | G19: Diesel (100% mineral diesel) | H19: No WTT
A20: Petrol | B20: 2.29968 | C20: kg CO2e/ litre | D20: 2016-05-31 | E20: 150625 DCFCarbonFactors_25_6_2015_114853 | F20: Fuels | G20: Petrol (100% mineral petrol) | H20: No WTT
A21: LPG - use | B21: 0.21468 | C21: kg CO2e/ kWh | D21: 2016-05-31 | E21: 150625 DCFCarbonFactors_25_6_2015_114853 | F21: Fuels | G21: LPG | N21: 0.21452
A22: LPG - WTT | B22: 0.02697 | C22: kg CO2e/ kWh | D22: 2016-05-31 | E22: 150625 DCFCarbonFactors_25_6_2015_114853 | F22: WTT- fuels | G22: LPG | N22: 1.4929
A23: LPG | B23: =SUM(B21:B22)*H23 -> 1.681704666 | C23: kg CO2e/ litre | E23: Converted to litres using factor >>> | H23: 6.959257878 | L23: http://www.energyandcarbonmanagement.com/conversion-tables | N23: =+N22/N21 -> 6.959257878
A24: WVO | B24: =+B19*0.25 -> 0.669035 | C24: kg CO2e/ litre | H24: 25% of diesel | N24: =+N21*N23 -> 1.4929
A26: Air travel long haul - use | B26: 0.19813 | C26: kg CO2e/ km | D26: 2016-05-31 | E26: 150625 DCFCarbonFactors_25_6_2015_114853 | F26: Business travel- air | G26: Long-haul | H26: Average passenger with Radiative Forcing | N26: 0.27176
A27: Air travel long haul - WTT | B27: 0.0216 | C27: kg CO2e/ km | D27: 2016-05-31 | E27: 150625 DCFCarbonFactors_25_6_2015_114853 | F27: WTT- business travel- air | G27: Long-haul | H27: Average passenger with Radiative Forcing | N27: 2.9343
A28: Air travel long haul | B28: =SUM(B26:B27) -> 0.21973 | C28: kg CO2e/ km | K28: 0.621371192 | L28: =+B28/K28 -> 0.3536211573 | N28: =+N27/N26 -> 10.79739476
A29: Air travel short haul - use | B29: 0.16972 | C29: kg CO2e/ km | D29: 2016-05-31 | E29: 150625 DCFCarbonFactors_25_6_2015_114853 | F29: Business travel- air | G29: Short-haul | H29: Average passenger with Radiative Forcing | N29: =+N26*N28 -> 2.9343
A30: Air travel short haul - WTT | B30: 0.0185 | C30: kg CO2e/ km | D30: 2016-05-31 | E30: 150625 DCFCarbonFactors_25_6_2015_114853 | F30: WTT- business travel- air | G30: Short-haul | H30: Average passenger with Radiative Forcing
A31: Air travel short haul | B31: =SUM(B29:B30) -> 0.18822 | C31: kg CO2e/ km | K31: 0.621371192 | L31: =+B31/K31 -> 0.3029107278
A32: Train - use | B32: 0.045057 | C32: kg CO2e/ km | D32: 2016-05-31 | E32: 150625 DCFCarbonFactors_25_6_2015_114853 | F32: Business travel- land | G32: National rail
A33: Train - WTT | B33: 0.00816 | C33: kg CO2e/ km | D33: 2016-05-31 | E33: 150625 DCFCarbonFactors_25_6_2015_114853 | F33: WTT- pass vehs & travel- land | G33: National rail
A34: Train | B34: =SUM(B32:B33) -> 0.053217 | C34: kg CO2e/ km | K34: 0.621371192 | L34: =+B34/K34 -> 0.08564445968
A35: Coach - use | B35: 0.0293 | C35: kg CO2e/ km | D35: 2016-05-31 | E35: 150625 DCFCarbonFactors_25_6_2015_114853 | F35: Business travel- land | G35: Coach
A36: Coach - WTT | B36: 0.00627 | C36: kg CO2e/ km | D36: 2016-05-31 | E36: 150625 DCFCarbonFactors_25_6_2015_114853 | F36: WTT- pass vehs & travel- land | G36: Coach
A37: Coach | B37: =SUM(B35:B36) -> 0.03557 | C37: kg CO2e/ km
A38: Local bus - use | B38: 0.10033 | C38: kg CO2e/ km | D38: 2016-05-31 | E38: 150625 DCFCarbonFactors_25_6_2015_114853 | F38: Business travel- land | G38: Average local bus
A39: Local bus - WTT | B39: 0.02172 | C39: kg CO2e/ km | D39: 2016-05-31 | E39: 150625 DCFCarbonFactors_25_6_2015_114853 | F39: WTT- pass vehs & travel- land | G39: Average local bus
A40: Local bus | B40: =SUM(B38:B39) -> 0.12205 | C40: kg CO2e/ km | K40: 0.621371192 | L40: =+B40/K40 -> 0.1964204353
A41: Underground - use | B41: 0.05631 | C41: kg CO2e/ km | D41: 2016-05-31 | E41: 150625 DCFCarbonFactors_25_6_2015_114853 | F41: Business travel- land | G41: London Underground
A42: Underground - WTT | B42: 0.00839 | C42: kg CO2e/ km | D42: 2016-05-31 | E42: 150625 DCFCarbonFactors_25_6_2015_114853 | F42: WTT- pass vehs & travel- land | G42: London Underground
A43: Underground | B43: =SUM(B41:B42) -> 0.0647 | C43: kg CO2e/ km
A44: Taxi - use | B44: 0.21872 | C44: kg CO2e/ km | D44: 2016-05-31 | E44: 150625 DCFCarbonFactors_25_6_2015_114853 | F44: Business travel- land | G44: Black cab
A45: Taxi - WTT | B45: 0.0475 | C45: kg CO2e/ km | D45: 2016-05-31 | E45: 150625 DCFCarbonFactors_25_6_2015_114853 | F45: WTT- pass vehs & travel- land | G45: Black cab
A46: Taxi | B46: =SUM(B44:B45) -> 0.26622 | C46: kg CO2e/ km
A51: Water supply | B51: 0.344 | C51: kg CO2e/ m3 | D51: 2016-05-31 | E51: 150625 DCFCarbonFactors_25_6_2015_114853 | F51: Water supply | G51: Water supply
A52: Water treatment | B52: 0.708 | C52: kg CO2e/ m3 | D52: 2016-05-31 | E52: 150625 DCFCarbonFactors_25_6_2015_114853 | F52: Water treatment | G52: Water treatment
A53: Water | B53: =SUM(B51:B52) -> 1.052 | C53: kg CO2e/ m3
A54: Paper | B54: =+(939+490)/1000*2.5 -> 3.5725 | C54: CO2 kg / ream (500 sheets or 2.5kg paper) | D54: 2016-05-31 | E54: 150625 DCFCarbonFactors_25_6_2015_114853 | F54: Material use | G54: Paper and board: paper | J54: 1000
A55: Recycled Paper | B55: =+B54/2 -> 1.78625 | C55: CO2 kg / ream (500 sheets or 2.5kg paper)
A59: Translations
A60: mile | B60: 1.60934 | C60: km
A61: kWh | B61: 1 | C61: kWh
A62: Therms | B62: 29.30710833 | C62: kWh | E62: Gas
A63: Cubic m | B63: =30.2/2.831684659 -> 10.66502935 | C63: kWh | E63: Gas
A64: 1 kg Butane = | B64: 1.74 | C64: litres
A65: 1 kg Propane = | B65: 1.95 | C65: litres
A66: 1 Gallon = | B66: 4.546089 | C66: litres
A68: Typical office use of gas | B68: 150 | C68: kwh per square meter per year
A69: Typical office use of water | B69: 50 | C69: litres per person per day | F69: http://www.green-office.org.uk/audit.php?goingto=factsheet5
A71: Fuel prices | B71: Petrol | C71: Diesel | E71: LPG | F71: WVO
A72: Date from | B72: £ / Litre | C72: £ / Litre | E72: £ / Litre | F72: £ / Litre
A73: 2003-01-01 | B73: 0.75 | C73: 0.764
A74: 2004-01-01 | B74: 0.762 | C74: 0.779
A75: 2005-01-01 | B75: 0.79 | C75: 0.842
A76: 2006-01-01 | B76: 0.88 | C76: 0.931
A77: 2007-01-01 | B77: 0.869 | C77: 0.914
A78: 2008-01-01 | B78: 1.037 | C78: 1.087
A79: 2009-01-01 | B79: 0.863 | C79: 0.987
A80: 2010-01-01 | B80: 1.115 | C80: 1.133
A81: 2011-01-01 | B81: 1.275 | C81: 1.321
A82: 2012-01-01 | B82: 1.346 | C82: 1.426

Sheet Carbon Account
A1: =+'1 Data'!B8 -> The Example Company
A2: Carbon Accounting Statement
A3: ="For the period from "&TEXT('1 Data'!B10,"d mmmm yyyy")&" to "&TEXT('1 Data'!B11,"d mmmm yyyy") -> For the period from 0 January 1900 to 0 January 1900
B5: CO2e kg
A6: Electricity | B6: =IF(AND('2 Elec Bills'!G2="Yes",'3 Elec Use'!G2="Yes"),+'2 Elec Bills'!G8+'3 Elec Use'!K8,"Data not complete") -> Data not complete
A7: Gas | B7: =IF(AND('4 Gas Bills'!G2="Yes",'5 Gas Est'!G2="Yes"),+'4 Gas Bills'!I8+'5 Gas Est'!D21, "Data not complete") -> Data not complete
A8: Travel: Commuting (non-air) | B8: =(IF(AND( '9 Commute'!G2="Yes"),'9 Commute'!J9, "Data not complete")) -> Data not complete
A9: Travel: Business (non-air) | B9: =(IF(AND('6 Public Trans'!G2="Yes",'7 Car and Van'!G2="Yes",'8 Road Fuel'!G2="Yes"),+'6 Public Trans'!E8+'7 Car and Van'!E8+'8 Road Fuel'!E8, "Data not complete")) -> Data not complete
A10: Travel: Air | B10: =(IF(AND('6 Public Trans'!G2="Yes", '9 Commute'!G2="Yes"),+'6 Public Trans'!E7+'9 Commute'!J8, "Data not complete")) -> Data not complete
A11: Water | B11: =IF(AND('10 Water bills'!G2="Yes",'11 Water Est'!G2="Yes"),+'10 Water bills'!G8+'11 Water Est'!B8, "Data not complete") -> Data not complete
A12: Paper use | B12: =IF(AND('12 Paper'!G2="Yes"),+'12 Paper'!E8, "Data not complete") -> Data not complete
A14: Gross Total emissions (CO2e kg) | B14: =IF(COUNT(B6:B12)=7,SUM(B6:B12),"Data not complete") -> Data not complete
A16: Green tariff electricity | B16: =IFERROR(-B6*'1 Data'!B13,0) -> 0
A17: PV Solar electricity generated | B17: =+'13 PV Solar'!G8 -> 0
A18: Carbon offsetting expenditure (CO2e kg) | B18: 0
A20: Net Total emissions (CO2e kg) | B20: =IF(COUNT(B6:B12)=7,SUM(B14:B19),"Data not complete") -> Data not complete
A22: Turnover (£) | B22: =+'1 Data'!B12 -> 0
A24: CO2 e kg per £1000 turnover - Gross | B24: =IF(COUNT(B6:B12)=7,+B14/B22*1000,"Data not complete") -> Data not complete
A25: CO2 e kg per £1000 turnover - Net | B25: =IF(COUNT(B6:B12)=7,+B20/B22*1000,"Data not complete") -> Data not complete

Sheet Comparatives
A1: =+'1 Data'!B8 -> The Example Company
A2: Carbon Accounting Statement
A3: These figures show the CO2e kg per £1,000 of turnover.
B5: ="For the period ending "&TEXT('1 Data'!B11,"d mmmm yyyy") -> For the period ending 0 January 1900 | C5: For the period ending XX MONTH 20XX
B6: CO2e kg | C6: CO2e kg
A7: Electricity | B7: =+' Carbon Account'!B6/' Carbon Account'!$B$22*1000 ->  | C7: 0
A8: Gas | B8: =+' Carbon Account'!B7/' Carbon Account'!$B$22*1000 ->  | C8: 0
A9: Travel: Commuting (non-air) | B9: =+' Carbon Account'!B8/' Carbon Account'!$B$22*1000 ->  | C9: 0
A10: Travel: Business (non-air) | B10: =+' Carbon Account'!B9/' Carbon Account'!$B$22*1000 ->  | C10: 0
A11: Travel: Air | B11: =+' Carbon Account'!B10/' Carbon Account'!$B$22*1000 ->  | C11: 0
A12: Water | B12: =+' Carbon Account'!B11/' Carbon Account'!$B$22*1000 ->  | C12: 0
A13: Paper use | B13: =+' Carbon Account'!B12/' Carbon Account'!$B$22*1000 ->  | C13: 0
A15: Gross Total emissions (CO2e kg) | B15: =IF(COUNT(B7:B13)=7,SUM(B7:B13),"Data not complete") -> Data not complete | C15: =IF(COUNT(C7:C13)=7,SUM(C7:C13),"Data not complete") -> 0
A17: Green tariff electricity | B17: =+' Carbon Account'!B16/' Carbon Account'!$B$22*1000 ->  | C17: 0
A18: PV Solar electricity generated | B18: =+' Carbon Account'!B17/' Carbon Account'!$B$22*1000 ->  | C18: 0
A19: Carbon offsetting expenditure (CO2e kg) | B19: =+' Carbon Account'!B18/' Carbon Account'!$B$22*1000 ->  | C19: 0
A21: Net Total emissions (CO2e kg) | B21: =IF(COUNT(B7:B13)=7,SUM(B15:B20),"Data not complete") -> Data not complete | C21: =IF(COUNT(C7:C13)=7,SUM(C15:C20),"Data not complete") -> 0

Sheet 1 Data
A1: =+B8 -> The Example Company | G1: Data Complete?
A2: ="For the period from "&TEXT('1 Data'!B10,"d mmmm yyyy")&" to "&TEXT('1 Data'!B11,"d mmmm yyyy") -> For the period from 0 January 1900 to 0 January 1900 | G2: Yes
A3: Data for Carbon Accounting
A5: Please complete coloured cells. White cells should not need to be amended
A8: Entity name: | B8: The Example Company
A10: Start
A11: End | C11: < calculated as one year but can be overtyped if different
A12: Turnover or Gross Income | B12: 0
A13: % Renewable Electricity | C13: Record % of electricity with Climate Change Levy Exemption Certificate
A15: Cars used | B15: CO2e g per km | C15: Waste Veg Oil %
D16: Record cars and vans used for business use and commuting

Sheet 2 Elec Bills
A1: =+'1 Data'!B8 -> The Example Company | G1: Data Complete?
A2: ="For the period from "&TEXT('1 Data'!B10,"d mmmm yyyy")&" to "&TEXT('1 Data'!B11,"d mmmm yyyy") -> For the period from 0 January 1900 to 0 January 1900 | G2: No
A3: Electricity bills
A5: Record here all electricity bills relating to the period. Include date and reading at start of first bill
A6: If no bills then leave blank and complete "Elec Use" tab instead.
A7: If you have electricity bills AND other electricity use, such as electricity in a shared space, then complete BOTH tabs.
A8: Total for period | D8: =SUM(D11:D25) -> 0 | F8: =SUM(F11:F25) -> 0 | G8: =SUM(G11:G25) -> 0
A9: Date | B9: Meter reading kWh | C9: Electricity units on bill kWh | D9: Electricity this period kWh | E9: Percentage business | F9: Business use in period kWh | G9: CO2e Kg
H10: < date and reading at start of first bill
C11: =IF(B11>0,+B11-B10,0) -> 0 | D11: =IF($A10>0,MAX(+$A11-$A10-MAX('1 Data'!$B$10-1-$A10,0)-MAX($A11-'1 Data'!$B$11,0),0)*$C11/($A11-$A10),0) -> 0 | E11: 1 | F11: =+D11*E11 -> 0 | G11: =F11*VLOOKUP("Electricity",'Factors (to hide)'!A:B,2,FALSE) -> 0 | H11: < date and reading at end of first bill
C12: 0 | D12: =IF($A11>0,MAX(+$A12-$A11-MAX('1 Data'!$B$10-1-$A11,0)-MAX($A12-'1 Data'!$B$11,0),0)*$C12/($A12-$A11),0) -> 0 | E12: 1 | F12: =+D12*E12 -> 0 | G12: =F12*VLOOKUP("Electricity",'Factors (to hide)'!A:B,2,FALSE) -> 0 | H12: < date and reading at end of second bill
C13: 0 | D13: =IF($A12>0,MAX(+$A13-$A12-MAX('1 Data'!$B$10-1-$A12,0)-MAX($A13-'1 Data'!$B$11,0),0)*$C13/($A13-$A12),0) -> 0 | E13: 1 | F13: 0 | G13: =F13*VLOOKUP("Electricity",'Factors (to hide)'!A:B,2,FALSE) -> 0 | H13: < date and reading at end of third bill
C14: 0 | D14: =IF($A13>0,MAX(+$A14-$A13-MAX('1 Data'!$B$10-1-$A13,0)-MAX($A14-'1 Data'!$B$11,0),0)*$C14/($A14-$A13),0) -> 0 | E14: 1 | F14: 0 | G14: =F14*VLOOKUP("Electricity",'Factors (to hide)'!A:B,2,FALSE) -> 0 | H14: etc.
C15: 0 | D15: =IF($A14>0,MAX(+$A15-$A14-MAX('1 Data'!$B$10-1-$A14,0)-MAX($A15-'1 Data'!$B$11,0),0)*$C15/($A15-$A14),0) -> 0 | E15: 1 | F15: 0 | G15: =F15*VLOOKUP("Electricity",'Factors (to hide)'!A:B,2,FALSE) -> 0
C16: 0 | D16: =IF($A15>0,MAX(+$A16-$A15-MAX('1 Data'!$B$10-1-$A15,0)-MAX($A16-'1 Data'!$B$11,0),0)*$C16/($A16-$A15),0) -> 0 | E16: 1 | F16: 0 | G16: =F16*VLOOKUP("Electricity",'Factors (to hide)'!A:B,2,FALSE) -> 0
C17: =IF(B17>0,+B17-B16,0) -> 0 | D17: =IF($A16>0,MAX(+$A17-$A16-MAX('1 Data'!$B$10-1-$A16,0)-MAX($A17-'1 Data'!$B$11,0),0)*$C17/($A17-$A16),0) -> 0 | E17: 1 | F17: =+D17*E17 -> 0 | G17: =F17*VLOOKUP("Electricity",'Factors (to hide)'!A:B,2,FALSE) -> 0
C18: 0 | D18: =IF($A17>0,MAX(+$A18-$A17-MAX('1 Data'!$B$10-1-$A17,0)-MAX($A18-'1 Data'!$B$11,0),0)*$C18/($A18-$A17),0) -> 0 | E18: 1 | F18: 0 | G18: =F18*VLOOKUP("Electricity",'Factors (to hide)'!A:B,2,FALSE) -> 0
C19: 0 | D19: =IF($A18>0,MAX(+$A19-$A18-MAX('1 Data'!$B$10-1-$A18,0)-MAX($A19-'1 Data'!$B$11,0),0)*$C19/($A19-$A18),0) -> 0 | E19: 1 | F19: 0 | G19: =F19*VLOOKUP("Electricity",'Factors (to hide)'!A:B,2,FALSE) -> 0
C20: 0 | D20: =IF($A19>0,MAX(+$A20-$A19-MAX('1 Data'!$B$10-1-$A19,0)-MAX($A20-'1 Data'!$B$11,0),0)*$C20/($A20-$A19),0) -> 0 | E20: 1 | F20: 0 | G20: =F20*VLOOKUP("Electricity",'Factors (to hide)'!A:B,2,FALSE) -> 0
C21: 0 | D21: =IF($A20>0,MAX(+$A21-$A20-MAX('1 Data'!$B$10-1-$A20,0)-MAX($A21-'1 Data'!$B$11,0),0)*$C21/($A21-$A20),0) -> 0 | E21: 1 | F21: 0 | G21: =F21*VLOOKUP("Electricity",'Factors (to hide)'!A:B,2,FALSE) -> 0
C22: 0 | D22: =IF($A21>0,MAX(+$A22-$A21-MAX('1 Data'!$B$10-1-$A21,0)-MAX($A22-'1 Data'!$B$11,0),0)*$C22/($A22-$A21),0) -> 0 | E22: 1 | F22: 0 | G22: =F22*VLOOKUP("Electricity",'Factors (to hide)'!A:B,2,FALSE) -> 0
C23: 0 | D23: =IF($A22>0,MAX(+$A23-$A22-MAX('1 Data'!$B$10-1-$A22,0)-MAX($A23-'1 Data'!$B$11,0),0)*$C23/($A23-$A22),0) -> 0 | E23: 1 | F23: 0 | G23: =F23*VLOOKUP("Electricity",'Factors (to hide)'!A:B,2,FALSE) -> 0
C24: 0 | D24: =IF($A23>0,MAX(+$A24-$A23-MAX('1 Data'!$B$10-1-$A23,0)-MAX($A24-'1 Data'!$B$11,0),0)*$C24/($A24-$A23),0) -> 0 | E24: 1 | F24: 0 | G24: =F24*VLOOKUP("Electricity",'Factors (to hide)'!A:B,2,FALSE) -> 0
C25: 0 | D25: =IF($A24>0,MAX(+$A25-$A24-MAX('1 Data'!$B$10-1-$A24,0)-MAX($A25-'1 Data'!$B$11,0),0)*$C25/($A25-$A24),0) -> 0 | E25: 1 | F25: 0 | G25: =F25*VLOOKUP("Electricity",'Factors (to hide)'!A:B,2,FALSE) -> 0

Sheet 3 Elec Use
A1: =+'1 Data'!B8 -> The Example Company | G1: Data Complete?
A2: ="For the period from "&TEXT('1 Data'!B10,"d mmmm yyyy")&" to "&TEXT('1 Data'!B11,"d mmmm yyyy") -> For the period from 0 January 1900 to 0 January 1900 | G2: No
A3: Electricity - use record
A5: Record here any electricity use not already included in the Elec Bills tab
A6: If an item has been used for part of a year then adjust the Quantity column accordingly.
A8: Total for period | J8: =SUM(J10:J29) -> 0 | K8: =SUM(K10:K29) -> 0
C9: Power (kW) | D9: Hours per day | E9: Power used per day (kWh) | F9: Quantity of appliances | G9: Days per week | H9: Weeks per year | I9: % share | J9: kWh per period | K9: CO2e KG per period
A10: Appliance 1 | B10: Laptops | C10: 0.2 | D10: 7 | E10: =+C10*D10 -> 1.4 | G10: 5 | H10: 47 | I10: 1 | J10: =+E10*F10*G10*H10*I10 -> 0 | K10: =VLOOKUP("Electricity",'Factors (to hide)'!$A:$B,2,FALSE)*J10 -> 0
A11: Appliance 2 | B11: Monitors | C11: 0.03 | D11: 7 | E11: =+C11*D11 -> 0.21 | G11: 5 | H11: 47 | I11: 1 | J11: =+E11*F11*G11*H11*I11 -> 0 | K11: =VLOOKUP("Electricity",'Factors (to hide)'!$A:$B,2,FALSE)*J11 -> 0
A12: Appliance 3 | B12: Telephones | C12: 0.01 | D12: 7 | E12: 0.07 | G12: 5 | H12: 47 | I12: 1 | J12: 0 | K12: =VLOOKUP("Electricity",'Factors (to hide)'!$A:$B,2,FALSE)*J12 -> 0
A13: Appliance 4 | B13: Modems | C13: 0.05 | D13: 7 | E13: 0.35 | G13: 5 | H13: 47 | I13: 1 | J13: 0 | K13: =VLOOKUP("Electricity",'Factors (to hide)'!$A:$B,2,FALSE)*J13 -> 0
A14: Appliance 5 | B14: Lights | C14: 0.05 | D14: 7 | E14: 0.35 | G14: 5 | H14: 47 | I14: 1 | J14: 0 | K14: =VLOOKUP("Electricity",'Factors (to hide)'!$A:$B,2,FALSE)*J14 -> 0
A15: Appliance 6 | B15: Kettle | C15: 2 | D15: 0.333 | E15: 0.666 | G15: 5 | H15: 51 | I15: 1 | J15: 0 | K15: =VLOOKUP("Electricity",'Factors (to hide)'!$A:$B,2,FALSE)*J15 -> 0
A16: Appliance 7 | E16: 0 | J16: 0 | K16: =VLOOKUP("Electricity",'Factors (to hide)'!$A:$B,2,FALSE)*J16 -> 0
A17: Appliance 8 | E17: 0 | J17: 0 | K17: =VLOOKUP("Electricity",'Factors (to hide)'!$A:$B,2,FALSE)*J17 -> 0
A18: Appliance 9 | E18: 0 | J18: 0 | K18: =VLOOKUP("Electricity",'Factors (to hide)'!$A:$B,2,FALSE)*J18 -> 0
A19: Appliance 10 | E19: 0 | J19: 0 | K19: =VLOOKUP("Electricity",'Factors (to hide)'!$A:$B,2,FALSE)*J19 -> 0
A20: Appliance 11 | E20: 0 | J20: 0 | K20: =VLOOKUP("Electricity",'Factors (to hide)'!$A:$B,2,FALSE)*J20 -> 0
A21: Appliance 12 | E21: 0 | J21: 0 | K21: =VLOOKUP("Electricity",'Factors (to hide)'!$A:$B,2,FALSE)*J21 -> 0
A22: Appliance 13 | E22: 0 | J22: 0 | K22: =VLOOKUP("Electricity",'Factors (to hide)'!$A:$B,2,FALSE)*J22 -> 0
A23: Appliance 14 | E23: 0 | J23: 0 | K23: =VLOOKUP("Electricity",'Factors (to hide)'!$A:$B,2,FALSE)*J23 -> 0
A24: Appliance 15 | E24: 0 | J24: 0 | K24: =VLOOKUP("Electricity",'Factors (to hide)'!$A:$B,2,FALSE)*J24 -> 0
A25: Appliance 16 | E25: 0 | J25: 0 | K25: =VLOOKUP("Electricity",'Factors (to hide)'!$A:$B,2,FALSE)*J25 -> 0
A26: Appliance 17 | E26: 0 | J26: 0 | K26: =VLOOKUP("Electricity",'Factors (to hide)'!$A:$B,2,FALSE)*J26 -> 0
A27: Appliance 18 | E27: 0 | J27: 0 | K27: =VLOOKUP("Electricity",'Factors (to hide)'!$A:$B,2,FALSE)*J27 -> 0
A28: Appliance 19 | E28: 0 | J28: 0 | K28: =VLOOKUP("Electricity",'Factors (to hide)'!$A:$B,2,FALSE)*J28 -> 0
A29: Appliance 20 | E29: 0 | J29: 0 | K29: =VLOOKUP("Electricity",'Factors (to hide)'!$A:$B,2,FALSE)*J29 -> 0
E30: ^ this calculation (column E) can be overwritten if useage monitor readings taken to find averge use per day on any or all appliances

Sheet 4 Gas Bills
A1: =+'1 Data'!B8 -> The Example Company | G1: Data Complete?
A2: ="For the period from "&TEXT('1 Data'!B10,"d mmmm yyyy")&" to "&TEXT('1 Data'!B11,"d mmmm yyyy") -> For the period from 0 January 1900 to 0 January 1900 | G2: No
A3: Gas bills
A5: Record here all gas bills relating to the period. Include date and reading at start of first bill
A6: If no bills then leave blank and complete "Gas Est" tab instead.
A7: If you have gas bills AND other gas use, such as gas heating in a shared space, then complete BOTH tabs.
A8: Total for period | E8: =SUM(E11:E25) -> 0 | H8: =SUM(H11:H25) -> 0 | I8: =SUM(I11:I25) -> 0
A9: Date | B9: Meter reading | C9: Units | D9: Gas units on bill | E9: Gas relating to this period | F9: Converted to kWh | G9: Percentage business | H9: Business use in period kWh | I9: CO2e Kg
C10: kWh | J10: < date and reading at start of first bill
C11: kWh | D11: =IF(B11>0,+B11-B10,0) -> 0 | E11: =IF($A10>0,MAX(+$A11-$A10-MAX('1 Data'!$B$10-1-$A10,0)-MAX($A11-'1 Data'!$B$11,0),0)*$D11/($A11-$A10),0) -> 0 | F11: =E11*VLOOKUP(C11,'Factors (to hide)'!A:B,2,FALSE) -> 0 | G11: 1 | H11: =+F11*G11 -> 0 | I11: =H11*VLOOKUP("Natural Gas",'Factors (to hide)'!A:B,2,FALSE) -> 0 | J11: < date and reading at end of first bill
C12: kWh | D12: 0 | E12: =IF($A11>0,MAX(+$A12-$A11-MAX('1 Data'!$B$10-1-$A11,0)-MAX($A12-'1 Data'!$B$11,0),0)*$D12/($A12-$A11),0) -> 0 | F12: =E12*VLOOKUP(C12,'Factors (to hide)'!A:B,2,FALSE) -> 0 | G12: 1 | H12: =+F12*G12 -> 0 | I12: =H12*VLOOKUP("Natural Gas",'Factors (to hide)'!A:B,2,FALSE) -> 0 | J12: < date and reading at end of second bill
C13: kWh | D13: 0 | E13: =IF($A12>0,MAX(+$A13-$A12-MAX('1 Data'!$B$10-1-$A12,0)-MAX($A13-'1 Data'!$B$11,0),0)*$D13/($A13-$A12),0) -> 0 | F13: =E13*VLOOKUP(C13,'Factors (to hide)'!A:B,2,FALSE) -> 0 | G13: 1 | H13: 0 | I13: =H13*VLOOKUP("Natural Gas",'Factors (to hide)'!A:B,2,FALSE) -> 0 | J13: < date and reading at end of third bill
C14: kWh | D14: 0 | E14: =IF($A13>0,MAX(+$A14-$A13-MAX('1 Data'!$B$10-1-$A13,0)-MAX($A14-'1 Data'!$B$11,0),0)*$D14/($A14-$A13),0) -> 0 | F14: =E14*VLOOKUP(C14,'Factors (to hide)'!A:B,2,FALSE) -> 0 | G14: 1 | H14: 0 | I14: =H14*VLOOKUP("Natural Gas",'Factors (to hide)'!A:B,2,FALSE) -> 0 | J14: etc.
C15: kWh | D15: 0 | E15: =IF($A14>0,MAX(+$A15-$A14-MAX('1 Data'!$B$10-1-$A14,0)-MAX($A15-'1 Data'!$B$11,0),0)*$D15/($A15-$A14),0) -> 0 | F15: =E15*VLOOKUP(C15,'Factors (to hide)'!A:B,2,FALSE) -> 0 | G15: 1 | H15: 0 | I15: =H15*VLOOKUP("Natural Gas",'Factors (to hide)'!A:B,2,FALSE) -> 0
C16: kWh | D16: 0 | E16: =IF($A15>0,MAX(+$A16-$A15-MAX('1 Data'!$B$10-1-$A15,0)-MAX($A16-'1 Data'!$B$11,0),0)*$D16/($A16-$A15),0) -> 0 | F16: =E16*VLOOKUP(C16,'Factors (to hide)'!A:B,2,FALSE) -> 0 | G16: 1 | H16: 0 | I16: =H16*VLOOKUP("Natural Gas",'Factors (to hide)'!A:B,2,FALSE) -> 0
C17: kWh | D17: 0 | E17: =IF($A16>0,MAX(+$A17-$A16-MAX('1 Data'!$B$10-1-$A16,0)-MAX($A17-'1 Data'!$B$11,0),0)*$D17/($A17-$A16),0) -> 0 | F17: =E17*VLOOKUP(C17,'Factors (to hide)'!A:B,2,FALSE) -> 0 | G17: 1 | H17: 0 | I17: =H17*VLOOKUP("Natural Gas",'Factors (to hide)'!A:B,2,FALSE) -> 0
C18: kWh | D18: 0 | E18: =IF($A17>0,MAX(+$A18-$A17-MAX('1 Data'!$B$10-1-$A17,0)-MAX($A18-'1 Data'!$B$11,0),0)*$D18/($A18-$A17),0) -> 0 | F18: =E18*VLOOKUP(C18,'Factors (to hide)'!A:B,2,FALSE) -> 0 | G18: 1 | H18: 0 | I18: =H18*VLOOKUP("Natural Gas",'Factors (to hide)'!A:B,2,FALSE) -> 0
C19: kWh | D19: 0 | E19: =IF($A18>0,MAX(+$A19-$A18-MAX('1 Data'!$B$10-1-$A18,0)-MAX($A19-'1 Data'!$B$11,0),0)*$D19/($A19-$A18),0) -> 0 | F19: =E19*VLOOKUP(C19,'Factors (to hide)'!A:B,2,FALSE) -> 0 | G19: 1 | H19: 0 | I19: =H19*VLOOKUP("Natural Gas",'Factors (to hide)'!A:B,2,FALSE) -> 0
C20: kWh | D20: 0 | E20: =IF($A19>0,MAX(+$A20-$A19-MAX('1 Data'!$B$10-1-$A19,0)-MAX($A20-'1 Data'!$B$11,0),0)*$D20/($A20-$A19),0) -> 0 | F20: =E20*VLOOKUP(C20,'Factors (to hide)'!A:B,2,FALSE) -> 0 | G20: 1 | H20: 0 | I20: =H20*VLOOKUP("Natural Gas",'Factors (to hide)'!A:B,2,FALSE) -> 0
C21: kWh | D21: 0 | E21: =IF($A20>0,MAX(+$A21-$A20-MAX('1 Data'!$B$10-1-$A20,0)-MAX($A21-'1 Data'!$B$11,0),0)*$D21/($A21-$A20),0) -> 0 | F21: =E21*VLOOKUP(C21,'Factors (to hide)'!A:B,2,FALSE) -> 0 | G21: 1 | H21: 0 | I21: =H21*VLOOKUP("Natural Gas",'Factors (to hide)'!A:B,2,FALSE) -> 0
C22: kWh | D22: 0 | E22: =IF($A21>0,MAX(+$A22-$A21-MAX('1 Data'!$B$10-1-$A21,0)-MAX($A22-'1 Data'!$B$11,0),0)*$D22/($A22-$A21),0) -> 0 | F22: =E22*VLOOKUP(C22,'Factors (to hide)'!A:B,2,FALSE) -> 0 | G22: 1 | H22: 0 | I22: =H22*VLOOKUP("Natural Gas",'Factors (to hide)'!A:B,2,FALSE) -> 0
C23: kWh | D23: 0 | E23: =IF($A22>0,MAX(+$A23-$A22-MAX('1 Data'!$B$10-1-$A22,0)-MAX($A23-'1 Data'!$B$11,0),0)*$D23/($A23-$A22),0) -> 0 | F23: =E23*VLOOKUP(C23,'Factors (to hide)'!A:B,2,FALSE) -> 0 | G23: 1 | H23: 0 | I23: =H23*VLOOKUP("Natural Gas",'Factors (to hide)'!A:B,2,FALSE) -> 0
C24: kWh | D24: 0 | E24: =IF($A23>0,MAX(+$A24-$A23-MAX('1 Data'!$B$10-1-$A23,0)-MAX($A24-'1 Data'!$B$11,0),0)*$D24/($A24-$A23),0) -> 0 | F24: =E24*VLOOKUP(C24,'Factors (to hide)'!A:B,2,FALSE) -> 0 | G24: 1 | H24: 0 | I24: =H24*VLOOKUP("Natural Gas",'Factors (to hide)'!A:B,2,FALSE) -> 0
C25: kWh | D25: 0 | E25: =IF($A24>0,MAX(+$A25-$A24-MAX('1 Data'!$B$10-1-$A24,0)-MAX($A25-'1 Data'!$B$11,0),0)*$D25/($A25-$A24),0) -> 0 | F25: =E25*VLOOKUP(C25,'Factors (to hide)'!A:B,2,FALSE) -> 0 | G25: 1 | H25: 0 | I25: =H25*VLOOKUP("Natural Gas",'Factors (to hide)'!A:B,2,FALSE) -> 0

Sheet 5 Gas Est
A1: =+'1 Data'!B8 -> The Example Company | G1: Data Complete?
A2: ="For the period from "&TEXT('1 Data'!B10,"d mmmm yyyy")&" to "&TEXT('1 Data'!B11,"d mmmm yyyy") -> For the period from 0 January 1900 to 0 January 1900 | G2: No
A3: Gas Estimations
A5: This sheet is used to estimate gas used for heating. This is needed if you don't have gas bills or use a shared space that is heated.
A8: Total for period | B8: =MAX(B21:C21) -> 51.035544 | C8: CO2e kg
B9: Area method | C9: Power method
A10: Workspace size | B10: 70 | D10: Estimate at 70 sq feet per person in absence of any information
A11: Size units | B11: Sq feet
A12: Insulation factor | B12: average
A13: Heating system power (kW)
A14: Hours heated per day
A15: Days heated per week
A16: Weeks heated per year
A17: Other factors | B17: 1 | C17: 1
A18: Percentage share | B18: 0.25 | C18: 1
A19: Calculated kWh for period | B19: ='Factors (to hide)'!$B68*B10*IF(B11="Sq feet",0.0929,1)*VLOOKUP(B12,$A$25:$B$29,2,FALSE)*B17*B18 -> 243.8625 | C19: =+C13*C14*C15*C16*C17*C18 -> 0
A20: Fuel used | B20: Natural Gas | C20: Natural Gas | D20: Higher figure
A21: CO2e for period | B21: =VLOOKUP(B20,'Factors (to hide)'!$A:$B,2,FALSE)*B19 -> 51.035544 | C21: =VLOOKUP(C20,'Factors (to hide)'!$A:$B,2,FALSE)*C19 -> 0 | D21: =MAX(B21:C21) -> 51.035544
A24: Insulation factors:
A25: very poor | B25: 1.5
A26: poor | B26: 1.25
A27: average | B27: 1
A28: good | B28: 0.75
A29: very good | B29: 0.5

Sheet 6 Public Trans
A1: =+'1 Data'!B8 -> The Example Company | G1: Data Complete?
A2: ="For the period from "&TEXT('1 Data'!B10,"d mmmm yyyy")&" to "&TEXT('1 Data'!B11,"d mmmm yyyy") -> For the period from 0 January 1900 to 0 January 1900 | G2: No
A3: Public transport (not regular commuting)
A5: Record here any public transport use that is not regular commuting
C7: Total Air Travel | E7: =+SUMIFS($E$11:$E$94,$C$11:$C$94,"*air*") -> 0
C8: Total Non-Air Travel | E8: =+E9-E7 -> 0
A9: Total for period | D9: =SUM(D11:D94) -> 0 | E9: =SUM(E11:E94) -> 0
A10: Date | B10: Description | C10: Transport type | D10: Distance (miles) | E10: CO2e
E11: =IF(AND(A11>='1 Data'!$B$10,A11<='1 Data'!$B$11),IF(C11<>"",VLOOKUP(C11,'Factors (to hide)'!A:B,2,FALSE)*'Factors (to hide)'!$B$60*'6 Public Trans'!D11,""),"") -> 
E12: =IF(AND(A12>='1 Data'!$B$10,A12<='1 Data'!$B$11),IF(C12<>"",VLOOKUP(C12,'Factors (to hide)'!A:B,2,FALSE)*'Factors (to hide)'!$B$60*'6 Public Trans'!D12,""),"") -> 
E13: =IF(AND(A13>='1 Data'!$B$10,A13<='1 Data'!$B$11),IF(C13<>"",VLOOKUP(C13,'Factors (to hide)'!A:B,2,FALSE)*'Factors (to hide)'!$B$60*'6 Public Trans'!D13,""),"") -> 
E14: =IF(AND(A14>='1 Data'!$B$10,A14<='1 Data'!$B$11),IF(C14<>"",VLOOKUP(C14,'Factors (to hide)'!A:B,2,FALSE)*'Factors (to hide)'!$B$60*'6 Public Trans'!D14,""),"") -> 
E15: =IF(AND(A15>='1 Data'!$B$10,A15<='1 Data'!$B$11),IF(C15<>"",VLOOKUP(C15,'Factors (to hide)'!A:B,2,FALSE)*'Factors (to hide)'!$B$60*'6 Public Trans'!D15,""),"") -> 
E16: =IF(AND(A16>='1 Data'!$B$10,A16<='1 Data'!$B$11),IF(C16<>"",VLOOKUP(C16,'Factors (to hide)'!A:B,2,FALSE)*'Factors (to hide)'!$B$60*'6 Public Trans'!D16,""),"") -> 
E17: =IF(AND(A17>='1 Data'!$B$10,A17<='1 Data'!$B$11),IF(C17<>"",VLOOKUP(C17,'Factors (to hide)'!A:B,2,FALSE)*'Factors (to hide)'!$B$60*'6 Public Trans'!D17,""),"") -> 
E18: =IF(AND(A18>='1 Data'!$B$10,A18<='1 Data'!$B$11),IF(C18<>"",VLOOKUP(C18,'Factors (to hide)'!A:B,2,FALSE)*'Factors (to hide)'!$B$60*'6 Public Trans'!D18,""),"") -> 
E19: =IF(AND(A19>='1 Data'!$B$10,A19<='1 Data'!$B$11),IF(C19<>"",VLOOKUP(C19,'Factors (to hide)'!A:B,2,FALSE)*'Factors (to hide)'!$B$60*'6 Public Trans'!D19,""),"") -> 
E20: =IF(AND(A20>='1 Data'!$B$10,A20<='1 Data'!$B$11),IF(C20<>"",VLOOKUP(C20,'Factors (to hide)'!A:B,2,FALSE)*'Factors (to hide)'!$B$60*'6 Public Trans'!D20,""),"") -> 
E21: =IF(AND(A21>='1 Data'!$B$10,A21<='1 Data'!$B$11),IF(C21<>"",VLOOKUP(C21,'Factors (to hide)'!A:B,2,FALSE)*'Factors (to hide)'!$B$60*'6 Public Trans'!D21,""),"") -> 
E22: =IF(AND(A22>='1 Data'!$B$10,A22<='1 Data'!$B$11),IF(C22<>"",VLOOKUP(C22,'Factors (to hide)'!A:B,2,FALSE)*'Factors (to hide)'!$B$60*'6 Public Trans'!D22,""),"") -> 
E23: =IF(AND(A23>='1 Data'!$B$10,A23<='1 Data'!$B$11),IF(C23<>"",VLOOKUP(C23,'Factors (to hide)'!A:B,2,FALSE)*'Factors (to hide)'!$B$60*'6 Public Trans'!D23,""),"") -> 
E24: =IF(AND(A24>='1 Data'!$B$10,A24<='1 Data'!$B$11),IF(C24<>"",VLOOKUP(C24,'Factors (to hide)'!A:B,2,FALSE)*'Factors (to hide)'!$B$60*'6 Public Trans'!D24,""),"") -> 
E25: =IF(AND(A25>='1 Data'!$B$10,A25<='1 Data'!$B$11),IF(C25<>"",VLOOKUP(C25,'Factors (to hide)'!A:B,2,FALSE)*'Factors (to hide)'!$B$60*'6 Public Trans'!D25,""),"") -> 
E26: =IF(AND(A26>='1 Data'!$B$10,A26<='1 Data'!$B$11),IF(C26<>"",VLOOKUP(C26,'Factors (to hide)'!A:B,2,FALSE)*'Factors (to hide)'!$B$60*'6 Public Trans'!D26,""),"") -> 
E27: =IF(AND(A27>='1 Data'!$B$10,A27<='1 Data'!$B$11),IF(C27<>"",VLOOKUP(C27,'Factors (to hide)'!A:B,2,FALSE)*'Factors (to hide)'!$B$60*'6 Public Trans'!D27,""),"") -> 
E28: =IF(AND(A28>='1 Data'!$B$10,A28<='1 Data'!$B$11),IF(C28<>"",VLOOKUP(C28,'Factors (to hide)'!A:B,2,FALSE)*'Factors (to hide)'!$B$60*'6 Public Trans'!D28,""),"") -> 
E29: =IF(AND(A29>='1 Data'!$B$10,A29<='1 Data'!$B$11),IF(C29<>"",VLOOKUP(C29,'Factors (to hide)'!A:B,2,FALSE)*'Factors (to hide)'!$B$60*'6 Public Trans'!D29,""),"") -> 
E30: =IF(AND(A30>='1 Data'!$B$10,A30<='1 Data'!$B$11),IF(C30<>"",VLOOKUP(C30,'Factors (to hide)'!A:B,2,FALSE)*'Factors (to hide)'!$B$60*'6 Public Trans'!D30,""),"") -> 
E31: =IF(AND(A31>='1 Data'!$B$10,A31<='1 Data'!$B$11),IF(C31<>"",VLOOKUP(C31,'Factors (to hide)'!A:B,2,FALSE)*'Factors (to hide)'!$B$60*'6 Public Trans'!D31,""),"") -> 
E32: =IF(AND(A32>='1 Data'!$B$10,A32<='1 Data'!$B$11),IF(C32<>"",VLOOKUP(C32,'Factors (to hide)'!A:B,2,FALSE)*'Factors (to hide)'!$B$60*'6 Public Trans'!D32,""),"") -> 
E33: =IF(AND(A33>='1 Data'!$B$10,A33<='1 Data'!$B$11),IF(C33<>"",VLOOKUP(C33,'Factors (to hide)'!A:B,2,FALSE)*'Factors (to hide)'!$B$60*'6 Public Trans'!D33,""),"") -> 
E34: =IF(AND(A34>='1 Data'!$B$10,A34<='1 Data'!$B$11),IF(C34<>"",VLOOKUP(C34,'Factors (to hide)'!A:B,2,FALSE)*'Factors (to hide)'!$B$60*'6 Public Trans'!D34,""),"") -> 
E35: =IF(AND(A35>='1 Data'!$B$10,A35<='1 Data'!$B$11),IF(C35<>"",VLOOKUP(C35,'Factors (to hide)'!A:B,2,FALSE)*'Factors (to hide)'!$B$60*'6 Public Trans'!D35,""),"") -> 
E36: =IF(AND(A36>='1 Data'!$B$10,A36<='1 Data'!$B$11),IF(C36<>"",VLOOKUP(C36,'Factors (to hide)'!A:B,2,FALSE)*'Factors (to hide)'!$B$60*'6 Public Trans'!D36,""),"") -> 
E37: =IF(AND(A37>='1 Data'!$B$10,A37<='1 Data'!$B$11),IF(C37<>"",VLOOKUP(C37,'Factors (to hide)'!A:B,2,FALSE)*'Factors (to hide)'!$B$60*'6 Public Trans'!D37,""),"") -> 
E38: =IF(AND(A38>='1 Data'!$B$10,A38<='1 Data'!$B$11),IF(C38<>"",VLOOKUP(C38,'Factors (to hide)'!A:B,2,FALSE)*'Factors (to hide)'!$B$60*'6 Public Trans'!D38,""),"") -> 
E39: =IF(AND(A39>='1 Data'!$B$10,A39<='1 Data'!$B$11),IF(C39<>"",VLOOKUP(C39,'Factors (to hide)'!A:B,2,FALSE)*'Factors (to hide)'!$B$60*'6 Public Trans'!D39,""),"") -> 
E40: =IF(AND(A40>='1 Data'!$B$10,A40<='1 Data'!$B$11),IF(C40<>"",VLOOKUP(C40,'Factors (to hide)'!A:B,2,FALSE)*'Factors (to hide)'!$B$60*'6 Public Trans'!D40,""),"") -> 
E41: =IF(AND(A41>='1 Data'!$B$10,A41<='1 Data'!$B$11),IF(C41<>"",VLOOKUP(C41,'Factors (to hide)'!A:B,2,FALSE)*'Factors (to hide)'!$B$60*'6 Public Trans'!D41,""),"") -> 
E42: =IF(AND(A42>='1 Data'!$B$10,A42<='1 Data'!$B$11),IF(C42<>"",VLOOKUP(C42,'Factors (to hide)'!A:B,2,FALSE)*'Factors (to hide)'!$B$60*'6 Public Trans'!D42,""),"") -> 
E43: =IF(AND(A43>='1 Data'!$B$10,A43<='1 Data'!$B$11),IF(C43<>"",VLOOKUP(C43,'Factors (to hide)'!A:B,2,FALSE)*'Factors (to hide)'!$B$60*'6 Public Trans'!D43,""),"") -> 
E44: =IF(AND(A44>='1 Data'!$B$10,A44<='1 Data'!$B$11),IF(C44<>"",VLOOKUP(C44,'Factors (to hide)'!A:B,2,FALSE)*'Factors (to hide)'!$B$60*'6 Public Trans'!D44,""),"") -> 
E45: =IF(AND(A45>='1 Data'!$B$10,A45<='1 Data'!$B$11),IF(C45<>"",VLOOKUP(C45,'Factors (to hide)'!A:B,2,FALSE)*'Factors (to hide)'!$B$60*'6 Public Trans'!D45,""),"") -> 
E46: =IF(AND(A46>='1 Data'!$B$10,A46<='1 Data'!$B$11),IF(C46<>"",VLOOKUP(C46,'Factors (to hide)'!A:B,2,FALSE)*'Factors (to hide)'!$B$60*'6 Public Trans'!D46,""),"") -> 
E47: =IF(AND(A47>='1 Data'!$B$10,A47<='1 Data'!$B$11),IF(C47<>"",VLOOKUP(C47,'Factors (to hide)'!A:B,2,FALSE)*'Factors (to hide)'!$B$60*'6 Public Trans'!D47,""),"") -> 
E48: =IF(AND(A48>='1 Data'!$B$10,A48<='1 Data'!$B$11),IF(C48<>"",VLOOKUP(C48,'Factors (to hide)'!A:B,2,FALSE)*'Factors (to hide)'!$B$60*'6 Public Trans'!D48,""),"") -> 
E49: =IF(AND(A49>='1 Data'!$B$10,A49<='1 Data'!$B$11),IF(C49<>"",VLOOKUP(C49,'Factors (to hide)'!A:B,2,FALSE)*'Factors (to hide)'!$B$60*'6 Public Trans'!D49,""),"") -> 
E50: =IF(AND(A50>='1 Data'!$B$10,A50<='1 Data'!$B$11),IF(C50<>"",VLOOKUP(C50,'Factors (to hide)'!A:B,2,FALSE)*'Factors (to hide)'!$B$60*'6 Public Trans'!D50,""),"") -> 
E51: =IF(AND(A51>='1 Data'!$B$10,A51<='1 Data'!$B$11),IF(C51<>"",VLOOKUP(C51,'Factors (to hide)'!A:B,2,FALSE)*'Factors (to hide)'!$B$60*'6 Public Trans'!D51,""),"") -> 
E52: =IF(AND(A52>='1 Data'!$B$10,A52<='1 Data'!$B$11),IF(C52<>"",VLOOKUP(C52,'Factors (to hide)'!A:B,2,FALSE)*'Factors (to hide)'!$B$60*'6 Public Trans'!D52,""),"") -> 
E53: =IF(AND(A53>='1 Data'!$B$10,A53<='1 Data'!$B$11),IF(C53<>"",VLOOKUP(C53,'Factors (to hide)'!A:B,2,FALSE)*'Factors (to hide)'!$B$60*'6 Public Trans'!D53,""),"") -> 
E54: =IF(AND(A54>='1 Data'!$B$10,A54<='1 Data'!$B$11),IF(C54<>"",VLOOKUP(C54,'Factors (to hide)'!A:B,2,FALSE)*'Factors (to hide)'!$B$60*'6 Public Trans'!D54,""),"") -> 
E55: =IF(AND(A55>='1 Data'!$B$10,A55<='1 Data'!$B$11),IF(C55<>"",VLOOKUP(C55,'Factors (to hide)'!A:B,2,FALSE)*'Factors (to hide)'!$B$60*'6 Public Trans'!D55,""),"") -> 
E56: =IF(AND(A56>='1 Data'!$B$10,A56<='1 Data'!$B$11),IF(C56<>"",VLOOKUP(C56,'Factors (to hide)'!A:B,2,FALSE)*'Factors (to hide)'!$B$60*'6 Public Trans'!D56,""),"") -> 
E57: =IF(AND(A57>='1 Data'!$B$10,A57<='1 Data'!$B$11),IF(C57<>"",VLOOKUP(C57,'Factors (to hide)'!A:B,2,FALSE)*'Factors (to hide)'!$B$60*'6 Public Trans'!D57,""),"") -> 
E58: =IF(AND(A58>='1 Data'!$B$10,A58<='1 Data'!$B$11),IF(C58<>"",VLOOKUP(C58,'Factors (to hide)'!A:B,2,FALSE)*'Factors (to hide)'!$B$60*'6 Public Trans'!D58,""),"") -> 
E59: =IF(AND(A59>='1 Data'!$B$10,A59<='1 Data'!$B$11),IF(C59<>"",VLOOKUP(C59,'Factors (to hide)'!A:B,2,FALSE)*'Factors (to hide)'!$B$60*'6 Public Trans'!D59,""),"") -> 
E60: =IF(AND(A60>='1 Data'!$B$10,A60<='1 Data'!$B$11),IF(C60<>"",VLOOKUP(C60,'Factors (to hide)'!A:B,2,FALSE)*'Factors (to hide)'!$B$60*'6 Public Trans'!D60,""),"") -> 
E61: =IF(AND(A61>='1 Data'!$B$10,A61<='1 Data'!$B$11),IF(C61<>"",VLOOKUP(C61,'Factors (to hide)'!A:B,2,FALSE)*'Factors (to hide)'!$B$60*'6 Public Trans'!D61,""),"") -> 
E62: =IF(AND(A62>='1 Data'!$B$10,A62<='1 Data'!$B$11),IF(C62<>"",VLOOKUP(C62,'Factors (to hide)'!A:B,2,FALSE)*'Factors (to hide)'!$B$60*'6 Public Trans'!D62,""),"") -> 
E63: =IF(AND(A63>='1 Data'!$B$10,A63<='1 Data'!$B$11),IF(C63<>"",VLOOKUP(C63,'Factors (to hide)'!A:B,2,FALSE)*'Factors (to hide)'!$B$60*'6 Public Trans'!D63,""),"") -> 
E64: =IF(AND(A64>='1 Data'!$B$10,A64<='1 Data'!$B$11),IF(C64<>"",VLOOKUP(C64,'Factors (to hide)'!A:B,2,FALSE)*'Factors (to hide)'!$B$60*'6 Public Trans'!D64,""),"") -> 
E65: =IF(AND(A65>='1 Data'!$B$10,A65<='1 Data'!$B$11),IF(C65<>"",VLOOKUP(C65,'Factors (to hide)'!A:B,2,FALSE)*'Factors (to hide)'!$B$60*'6 Public Trans'!D65,""),"") -> 
E66: =IF(AND(A66>='1 Data'!$B$10,A66<='1 Data'!$B$11),IF(C66<>"",VLOOKUP(C66,'Factors (to hide)'!A:B,2,FALSE)*'Factors (to hide)'!$B$60*'6 Public Trans'!D66,""),"") -> 
E67: =IF(AND(A67>='1 Data'!$B$10,A67<='1 Data'!$B$11),IF(C67<>"",VLOOKUP(C67,'Factors (to hide)'!A:B,2,FALSE)*'Factors (to hide)'!$B$60*'6 Public Trans'!D67,""),"") -> 
E68: =IF(AND(A68>='1 Data'!$B$10,A68<='1 Data'!$B$11),IF(C68<>"",VLOOKUP(C68,'Factors (to hide)'!A:B,2,FALSE)*'Factors (to hide)'!$B$60*'6 Public Trans'!D68,""),"") -> 
E69: =IF(AND(A69>='1 Data'!$B$10,A69<='1 Data'!$B$11),IF(C69<>"",VLOOKUP(C69,'Factors (to hide)'!A:B,2,FALSE)*'Factors (to hide)'!$B$60*'6 Public Trans'!D69,""),"") -> 
E70: =IF(AND(A70>='1 Data'!$B$10,A70<='1 Data'!$B$11),IF(C70<>"",VLOOKUP(C70,'Factors (to hide)'!A:B,2,FALSE)*'Factors (to hide)'!$B$60*'6 Public Trans'!D70,""),"") -> 
E71: =IF(AND(A71>='1 Data'!$B$10,A71<='1 Data'!$B$11),IF(C71<>"",VLOOKUP(C71,'Factors (to hide)'!A:B,2,FALSE)*'Factors (to hide)'!$B$60*'6 Public Trans'!D71,""),"") -> 
E72: =IF(AND(A72>='1 Data'!$B$10,A72<='1 Data'!$B$11),IF(C72<>"",VLOOKUP(C72,'Factors (to hide)'!A:B,2,FALSE)*'Factors (to hide)'!$B$60*'6 Public Trans'!D72,""),"") -> 
E73: =IF(AND(A73>='1 Data'!$B$10,A73<='1 Data'!$B$11),IF(C73<>"",VLOOKUP(C73,'Factors (to hide)'!A:B,2,FALSE)*'Factors (to hide)'!$B$60*'6 Public Trans'!D73,""),"") -> 
E74: =IF(AND(A74>='1 Data'!$B$10,A74<='1 Data'!$B$11),IF(C74<>"",VLOOKUP(C74,'Factors (to hide)'!A:B,2,FALSE)*'Factors (to hide)'!$B$60*'6 Public Trans'!D74,""),"") -> 
E75: =IF(AND(A75>='1 Data'!$B$10,A75<='1 Data'!$B$11),IF(C75<>"",VLOOKUP(C75,'Factors (to hide)'!A:B,2,FALSE)*'Factors (to hide)'!$B$60*'6 Public Trans'!D75,""),"") -> 
E76: =IF(AND(A76>='1 Data'!$B$10,A76<='1 Data'!$B$11),IF(C76<>"",VLOOKUP(C76,'Factors (to hide)'!A:B,2,FALSE)*'Factors (to hide)'!$B$60*'6 Public Trans'!D76,""),"") -> 
E77: =IF(AND(A77>='1 Data'!$B$10,A77<='1 Data'!$B$11),IF(C77<>"",VLOOKUP(C77,'Factors (to hide)'!A:B,2,FALSE)*'Factors (to hide)'!$B$60*'6 Public Trans'!D77,""),"") -> 
E78: =IF(AND(A78>='1 Data'!$B$10,A78<='1 Data'!$B$11),IF(C78<>"",VLOOKUP(C78,'Factors (to hide)'!A:B,2,FALSE)*'Factors (to hide)'!$B$60*'6 Public Trans'!D78,""),"") -> 
E79: =IF(AND(A79>='1 Data'!$B$10,A79<='1 Data'!$B$11),IF(C79<>"",VLOOKUP(C79,'Factors (to hide)'!A:B,2,FALSE)*'Factors (to hide)'!$B$60*'6 Public Trans'!D79,""),"") -> 
E80: =IF(AND(A80>='1 Data'!$B$10,A80<='1 Data'!$B$11),IF(C80<>"",VLOOKUP(C80,'Factors (to hide)'!A:B,2,FALSE)*'Factors (to hide)'!$B$60*'6 Public Trans'!D80,""),"") -> 
E81: =IF(AND(A81>='1 Data'!$B$10,A81<='1 Data'!$B$11),IF(C81<>"",VLOOKUP(C81,'Factors (to hide)'!A:B,2,FALSE)*'Factors (to hide)'!$B$60*'6 Public Trans'!D81,""),"") -> 
E82: =IF(AND(A82>='1 Data'!$B$10,A82<='1 Data'!$B$11),IF(C82<>"",VLOOKUP(C82,'Factors (to hide)'!A:B,2,FALSE)*'Factors (to hide)'!$B$60*'6 Public Trans'!D82,""),"") -> 
E83: =IF(AND(A83>='1 Data'!$B$10,A83<='1 Data'!$B$11),IF(C83<>"",VLOOKUP(C83,'Factors (to hide)'!A:B,2,FALSE)*'Factors (to hide)'!$B$60*'6 Public Trans'!D83,""),"") -> 
E84: =IF(AND(A84>='1 Data'!$B$10,A84<='1 Data'!$B$11),IF(C84<>"",VLOOKUP(C84,'Factors (to hide)'!A:B,2,FALSE)*'Factors (to hide)'!$B$60*'6 Public Trans'!D84,""),"") -> 
E85: =IF(AND(A85>='1 Data'!$B$10,A85<='1 Data'!$B$11),IF(C85<>"",VLOOKUP(C85,'Factors (to hide)'!A:B,2,FALSE)*'Factors (to hide)'!$B$60*'6 Public Trans'!D85,""),"") -> 
E86: =IF(AND(A86>='1 Data'!$B$10,A86<='1 Data'!$B$11),IF(C86<>"",VLOOKUP(C86,'Factors (to hide)'!A:B,2,FALSE)*'Factors (to hide)'!$B$60*'6 Public Trans'!D86,""),"") -> 
E87: =IF(AND(A87>='1 Data'!$B$10,A87<='1 Data'!$B$11),IF(C87<>"",VLOOKUP(C87,'Factors (to hide)'!A:B,2,FALSE)*'Factors (to hide)'!$B$60*'6 Public Trans'!D87,""),"") -> 
E88: =IF(AND(A88>='1 Data'!$B$10,A88<='1 Data'!$B$11),IF(C88<>"",VLOOKUP(C88,'Factors (to hide)'!A:B,2,FALSE)*'Factors (to hide)'!$B$60*'6 Public Trans'!D88,""),"") -> 
E89: =IF(AND(A89>='1 Data'!$B$10,A89<='1 Data'!$B$11),IF(C89<>"",VLOOKUP(C89,'Factors (to hide)'!A:B,2,FALSE)*'Factors (to hide)'!$B$60*'6 Public Trans'!D89,""),"") -> 
E90: =IF(AND(A90>='1 Data'!$B$10,A90<='1 Data'!$B$11),IF(C90<>"",VLOOKUP(C90,'Factors (to hide)'!A:B,2,FALSE)*'Factors (to hide)'!$B$60*'6 Public Trans'!D90,""),"") -> 
E91: =IF(AND(A91>='1 Data'!$B$10,A91<='1 Data'!$B$11),IF(C91<>"",VLOOKUP(C91,'Factors (to hide)'!A:B,2,FALSE)*'Factors (to hide)'!$B$60*'6 Public Trans'!D91,""),"") -> 
E92: =IF(AND(A92>='1 Data'!$B$10,A92<='1 Data'!$B$11),IF(C92<>"",VLOOKUP(C92,'Factors (to hide)'!A:B,2,FALSE)*'Factors (to hide)'!$B$60*'6 Public Trans'!D92,""),"") -> 
E93: =IF(AND(A93>='1 Data'!$B$10,A93<='1 Data'!$B$11),IF(C93<>"",VLOOKUP(C93,'Factors (to hide)'!A:B,2,FALSE)*'Factors (to hide)'!$B$60*'6 Public Trans'!D93,""),"") -> 
E94: =IF(AND(A94>='1 Data'!$B$10,A94<='1 Data'!$B$11),IF(C94<>"",VLOOKUP(C94,'Factors (to hide)'!A:B,2,FALSE)*'Factors (to hide)'!$B$60*'6 Public Trans'!D94,""),"") -> 

Sheet 7 Car and Van
A1: =+'1 Data'!B8 -> The Example Company | G1: Data Complete?
A2: ="For the period from "&TEXT('1 Data'!B10,"d mmmm yyyy")&" to "&TEXT('1 Data'!B11,"d mmmm yyyy") -> For the period from 0 January 1900 to 0 January 1900 | G2: No
A3: Car and Van (excluding regular commuting)
A5: Each car or van used must be listed on the Data tab, otherwise an error will occur in column E
A8: Total for period | D8: =SUM(D10:D100) -> 0 | E8: =SUM(E10:E100) -> 0
A9: Date | B9: Description | C9: Car or Van used | D9: Distance (miles) | E9: CO2e
E10: =IFERROR(IF(AND(A10>='1 Data'!$B$10,A10<='1 Data'!$B$11),IF(C10<>"",VLOOKUP(C10,'1 Data'!$A$15:$C$415,2,FALSE)/1000*D10*'Factors (to hide)'!$B$60*(0.25+(1-VLOOKUP(C10,'1 Data'!$A$15:$C$35,3,FALSE))*0.75),""),""),0) -> 
E11: =IFERROR(IF(AND(A11>='1 Data'!$B$10,A11<='1 Data'!$B$11),IF(C11<>"",VLOOKUP(C11,'1 Data'!$A$15:$C$415,2,FALSE)/1000*D11*'Factors (to hide)'!$B$60*(0.25+(1-VLOOKUP(C11,'1 Data'!$A$15:$C$35,3,FALSE))*0.75),""),""),0) -> 
E12: =IFERROR(IF(AND(A12>='1 Data'!$B$10,A12<='1 Data'!$B$11),IF(C12<>"",VLOOKUP(C12,'1 Data'!$A$15:$C$415,2,FALSE)/1000*D12*'Factors (to hide)'!$B$60*(0.25+(1-VLOOKUP(C12,'1 Data'!$A$15:$C$35,3,FALSE))*0.75),""),""),0) -> 
E13: =IFERROR(IF(AND(A13>='1 Data'!$B$10,A13<='1 Data'!$B$11),IF(C13<>"",VLOOKUP(C13,'1 Data'!$A$15:$C$415,2,FALSE)/1000*D13*'Factors (to hide)'!$B$60*(0.25+(1-VLOOKUP(C13,'1 Data'!$A$15:$C$35,3,FALSE))*0.75),""),""),0) -> 
E14: =IFERROR(IF(AND(A14>='1 Data'!$B$10,A14<='1 Data'!$B$11),IF(C14<>"",VLOOKUP(C14,'1 Data'!$A$15:$C$415,2,FALSE)/1000*D14*'Factors (to hide)'!$B$60*(0.25+(1-VLOOKUP(C14,'1 Data'!$A$15:$C$35,3,FALSE))*0.75),""),""),0) -> 
E15: =IFERROR(IF(AND(A15>='1 Data'!$B$10,A15<='1 Data'!$B$11),IF(C15<>"",VLOOKUP(C15,'1 Data'!$A$15:$C$415,2,FALSE)/1000*D15*'Factors (to hide)'!$B$60*(0.25+(1-VLOOKUP(C15,'1 Data'!$A$15:$C$35,3,FALSE))*0.75),""),""),0) -> 
E16: =IFERROR(IF(AND(A16>='1 Data'!$B$10,A16<='1 Data'!$B$11),IF(C16<>"",VLOOKUP(C16,'1 Data'!$A$15:$C$415,2,FALSE)/1000*D16*'Factors (to hide)'!$B$60*(0.25+(1-VLOOKUP(C16,'1 Data'!$A$15:$C$35,3,FALSE))*0.75),""),""),0) -> 
E17: =IFERROR(IF(AND(A17>='1 Data'!$B$10,A17<='1 Data'!$B$11),IF(C17<>"",VLOOKUP(C17,'1 Data'!$A$15:$C$415,2,FALSE)/1000*D17*'Factors (to hide)'!$B$60*(0.25+(1-VLOOKUP(C17,'1 Data'!$A$15:$C$35,3,FALSE))*0.75),""),""),0) -> 
E18: =IFERROR(IF(AND(A18>='1 Data'!$B$10,A18<='1 Data'!$B$11),IF(C18<>"",VLOOKUP(C18,'1 Data'!$A$15:$C$415,2,FALSE)/1000*D18*'Factors (to hide)'!$B$60*(0.25+(1-VLOOKUP(C18,'1 Data'!$A$15:$C$35,3,FALSE))*0.75),""),""),0) -> 
E19: =IFERROR(IF(AND(A19>='1 Data'!$B$10,A19<='1 Data'!$B$11),IF(C19<>"",VLOOKUP(C19,'1 Data'!$A$15:$C$415,2,FALSE)/1000*D19*'Factors (to hide)'!$B$60*(0.25+(1-VLOOKUP(C19,'1 Data'!$A$15:$C$35,3,FALSE))*0.75),""),""),0) -> 
E20: =IFERROR(IF(AND(A20>='1 Data'!$B$10,A20<='1 Data'!$B$11),IF(C20<>"",VLOOKUP(C20,'1 Data'!$A$15:$C$415,2,FALSE)/1000*D20*'Factors (to hide)'!$B$60*(0.25+(1-VLOOKUP(C20,'1 Data'!$A$15:$C$35,3,FALSE))*0.75),""),""),0) -> 
E21: =IFERROR(IF(AND(A21>='1 Data'!$B$10,A21<='1 Data'!$B$11),IF(C21<>"",VLOOKUP(C21,'1 Data'!$A$15:$C$415,2,FALSE)/1000*D21*'Factors (to hide)'!$B$60*(0.25+(1-VLOOKUP(C21,'1 Data'!$A$15:$C$35,3,FALSE))*0.75),""),""),0) -> 
E22: =IFERROR(IF(AND(A22>='1 Data'!$B$10,A22<='1 Data'!$B$11),IF(C22<>"",VLOOKUP(C22,'1 Data'!$A$15:$C$415,2,FALSE)/1000*D22*'Factors (to hide)'!$B$60*(0.25+(1-VLOOKUP(C22,'1 Data'!$A$15:$C$35,3,FALSE))*0.75),""),""),0) -> 
E23: =IFERROR(IF(AND(A23>='1 Data'!$B$10,A23<='1 Data'!$B$11),IF(C23<>"",VLOOKUP(C23,'1 Data'!$A$15:$C$415,2,FALSE)/1000*D23*'Factors (to hide)'!$B$60*(0.25+(1-VLOOKUP(C23,'1 Data'!$A$15:$C$35,3,FALSE))*0.75),""),""),0) -> 
E24: =IFERROR(IF(AND(A24>='1 Data'!$B$10,A24<='1 Data'!$B$11),IF(C24<>"",VLOOKUP(C24,'1 Data'!$A$15:$C$415,2,FALSE)/1000*D24*'Factors (to hide)'!$B$60*(0.25+(1-VLOOKUP(C24,'1 Data'!$A$15:$C$35,3,FALSE))*0.75),""),""),0) -> 
E25: =IFERROR(IF(AND(A25>='1 Data'!$B$10,A25<='1 Data'!$B$11),IF(C25<>"",VLOOKUP(C25,'1 Data'!$A$15:$C$415,2,FALSE)/1000*D25*'Factors (to hide)'!$B$60*(0.25+(1-VLOOKUP(C25,'1 Data'!$A$15:$C$35,3,FALSE))*0.75),""),""),0) -> 
E26: =IFERROR(IF(AND(A26>='1 Data'!$B$10,A26<='1 Data'!$B$11),IF(C26<>"",VLOOKUP(C26,'1 Data'!$A$15:$C$415,2,FALSE)/1000*D26*'Factors (to hide)'!$B$60*(0.25+(1-VLOOKUP(C26,'1 Data'!$A$15:$C$35,3,FALSE))*0.75),""),""),0) -> 
E27: =IFERROR(IF(AND(A27>='1 Data'!$B$10,A27<='1 Data'!$B$11),IF(C27<>"",VLOOKUP(C27,'1 Data'!$A$15:$C$415,2,FALSE)/1000*D27*'Factors (to hide)'!$B$60*(0.25+(1-VLOOKUP(C27,'1 Data'!$A$15:$C$35,3,FALSE))*0.75),""),""),0) -> 
E28: =IFERROR(IF(AND(A28>='1 Data'!$B$10,A28<='1 Data'!$B$11),IF(C28<>"",VLOOKUP(C28,'1 Data'!$A$15:$C$415,2,FALSE)/1000*D28*'Factors (to hide)'!$B$60*(0.25+(1-VLOOKUP(C28,'1 Data'!$A$15:$C$35,3,FALSE))*0.75),""),""),0) -> 
E29: =IFERROR(IF(AND(A29>='1 Data'!$B$10,A29<='1 Data'!$B$11),IF(C29<>"",VLOOKUP(C29,'1 Data'!$A$15:$C$415,2,FALSE)/1000*D29*'Factors (to hide)'!$B$60*(0.25+(1-VLOOKUP(C29,'1 Data'!$A$15:$C$35,3,FALSE))*0.75),""),""),0) -> 
E30: =IFERROR(IF(AND(A30>='1 Data'!$B$10,A30<='1 Data'!$B$11),IF(C30<>"",VLOOKUP(C30,'1 Data'!$A$15:$C$415,2,FALSE)/1000*D30*'Factors (to hide)'!$B$60*(0.25+(1-VLOOKUP(C30,'1 Data'!$A$15:$C$35,3,FALSE))*0.75),""),""),0) -> 
E31: =IFERROR(IF(AND(A31>='1 Data'!$B$10,A31<='1 Data'!$B$11),IF(C31<>"",VLOOKUP(C31,'1 Data'!$A$15:$C$415,2,FALSE)/1000*D31*'Factors (to hide)'!$B$60*(0.25+(1-VLOOKUP(C31,'1 Data'!$A$15:$C$35,3,FALSE))*0.75),""),""),0) -> 
E32: =IFERROR(IF(AND(A32>='1 Data'!$B$10,A32<='1 Data'!$B$11),IF(C32<>"",VLOOKUP(C32,'1 Data'!$A$15:$C$415,2,FALSE)/1000*D32*'Factors (to hide)'!$B$60*(0.25+(1-VLOOKUP(C32,'1 Data'!$A$15:$C$35,3,FALSE))*0.75),""),""),0) -> 
E33: =IFERROR(IF(AND(A33>='1 Data'!$B$10,A33<='1 Data'!$B$11),IF(C33<>"",VLOOKUP(C33,'1 Data'!$A$15:$C$415,2,FALSE)/1000*D33*'Factors (to hide)'!$B$60*(0.25+(1-VLOOKUP(C33,'1 Data'!$A$15:$C$35,3,FALSE))*0.75),""),""),0) -> 
E34: =IFERROR(IF(AND(A34>='1 Data'!$B$10,A34<='1 Data'!$B$11),IF(C34<>"",VLOOKUP(C34,'1 Data'!$A$15:$C$415,2,FALSE)/1000*D34*'Factors (to hide)'!$B$60*(0.25+(1-VLOOKUP(C34,'1 Data'!$A$15:$C$35,3,FALSE))*0.75),""),""),0) -> 
E35: =IFERROR(IF(AND(A35>='1 Data'!$B$10,A35<='1 Data'!$B$11),IF(C35<>"",VLOOKUP(C35,'1 Data'!$A$15:$C$415,2,FALSE)/1000*D35*'Factors (to hide)'!$B$60*(0.25+(1-VLOOKUP(C35,'1 Data'!$A$15:$C$35,3,FALSE))*0.75),""),""),0) -> 
E36: =IFERROR(IF(AND(A36>='1 Data'!$B$10,A36<='1 Data'!$B$11),IF(C36<>"",VLOOKUP(C36,'1 Data'!$A$15:$C$415,2,FALSE)/1000*D36*'Factors (to hide)'!$B$60*(0.25+(1-VLOOKUP(C36,'1 Data'!$A$15:$C$35,3,FALSE))*0.75),""),""),0) -> 
E37: =IFERROR(IF(AND(A37>='1 Data'!$B$10,A37<='1 Data'!$B$11),IF(C37<>"",VLOOKUP(C37,'1 Data'!$A$15:$C$415,2,FALSE)/1000*D37*'Factors (to hide)'!$B$60*(0.25+(1-VLOOKUP(C37,'1 Data'!$A$15:$C$35,3,FALSE))*0.75),""),""),0) -> 
E38: =IFERROR(IF(AND(A38>='1 Data'!$B$10,A38<='1 Data'!$B$11),IF(C38<>"",VLOOKUP(C38,'1 Data'!$A$15:$C$415,2,FALSE)/1000*D38*'Factors (to hide)'!$B$60*(0.25+(1-VLOOKUP(C38,'1 Data'!$A$15:$C$35,3,FALSE))*0.75),""),""),0) -> 
E39: =IFERROR(IF(AND(A39>='1 Data'!$B$10,A39<='1 Data'!$B$11),IF(C39<>"",VLOOKUP(C39,'1 Data'!$A$15:$C$415,2,FALSE)/1000*D39*'Factors (to hide)'!$B$60*(0.25+(1-VLOOKUP(C39,'1 Data'!$A$15:$C$35,3,FALSE))*0.75),""),""),0) -> 
E40: =IFERROR(IF(AND(A40>='1 Data'!$B$10,A40<='1 Data'!$B$11),IF(C40<>"",VLOOKUP(C40,'1 Data'!$A$15:$C$415,2,FALSE)/1000*D40*'Factors (to hide)'!$B$60*(0.25+(1-VLOOKUP(C40,'1 Data'!$A$15:$C$35,3,FALSE))*0.75),""),""),0) -> 
E41: =IFERROR(IF(AND(A41>='1 Data'!$B$10,A41<='1 Data'!$B$11),IF(C41<>"",VLOOKUP(C41,'1 Data'!$A$15:$C$415,2,FALSE)/1000*D41*'Factors (to hide)'!$B$60*(0.25+(1-VLOOKUP(C41,'1 Data'!$A$15:$C$35,3,FALSE))*0.75),""),""),0) -> 
E42: =IFERROR(IF(AND(A42>='1 Data'!$B$10,A42<='1 Data'!$B$11),IF(C42<>"",VLOOKUP(C42,'1 Data'!$A$15:$C$415,2,FALSE)/1000*D42*'Factors (to hide)'!$B$60*(0.25+(1-VLOOKUP(C42,'1 Data'!$A$15:$C$35,3,FALSE))*0.75),""),""),0) -> 
E43: =IFERROR(IF(AND(A43>='1 Data'!$B$10,A43<='1 Data'!$B$11),IF(C43<>"",VLOOKUP(C43,'1 Data'!$A$15:$C$415,2,FALSE)/1000*D43*'Factors (to hide)'!$B$60*(0.25+(1-VLOOKUP(C43,'1 Data'!$A$15:$C$35,3,FALSE))*0.75),""),""),0) -> 
E44: =IFERROR(IF(AND(A44>='1 Data'!$B$10,A44<='1 Data'!$B$11),IF(C44<>"",VLOOKUP(C44,'1 Data'!$A$15:$C$415,2,FALSE)/1000*D44*'Factors (to hide)'!$B$60*(0.25+(1-VLOOKUP(C44,'1 Data'!$A$15:$C$35,3,FALSE))*0.75),""),""),0) -> 
E45: =IFERROR(IF(AND(A45>='1 Data'!$B$10,A45<='1 Data'!$B$11),IF(C45<>"",VLOOKUP(C45,'1 Data'!$A$15:$C$415,2,FALSE)/1000*D45*'Factors (to hide)'!$B$60*(0.25+(1-VLOOKUP(C45,'1 Data'!$A$15:$C$35,3,FALSE))*0.75),""),""),0) -> 
E46: =IFERROR(IF(AND(A46>='1 Data'!$B$10,A46<='1 Data'!$B$11),IF(C46<>"",VLOOKUP(C46,'1 Data'!$A$15:$C$415,2,FALSE)/1000*D46*'Factors (to hide)'!$B$60*(0.25+(1-VLOOKUP(C46,'1 Data'!$A$15:$C$35,3,FALSE))*0.75),""),""),0) -> 
E47: =IFERROR(IF(AND(A47>='1 Data'!$B$10,A47<='1 Data'!$B$11),IF(C47<>"",VLOOKUP(C47,'1 Data'!$A$15:$C$415,2,FALSE)/1000*D47*'Factors (to hide)'!$B$60*(0.25+(1-VLOOKUP(C47,'1 Data'!$A$15:$C$35,3,FALSE))*0.75),""),""),0) -> 
E48: =IFERROR(IF(AND(A48>='1 Data'!$B$10,A48<='1 Data'!$B$11),IF(C48<>"",VLOOKUP(C48,'1 Data'!$A$15:$C$415,2,FALSE)/1000*D48*'Factors (to hide)'!$B$60*(0.25+(1-VLOOKUP(C48,'1 Data'!$A$15:$C$35,3,FALSE))*0.75),""),""),0) -> 
E49: =IFERROR(IF(AND(A49>='1 Data'!$B$10,A49<='1 Data'!$B$11),IF(C49<>"",VLOOKUP(C49,'1 Data'!$A$15:$C$415,2,FALSE)/1000*D49*'Factors (to hide)'!$B$60*(0.25+(1-VLOOKUP(C49,'1 Data'!$A$15:$C$35,3,FALSE))*0.75),""),""),0) -> 
E50: =IFERROR(IF(AND(A50>='1 Data'!$B$10,A50<='1 Data'!$B$11),IF(C50<>"",VLOOKUP(C50,'1 Data'!$A$15:$C$415,2,FALSE)/1000*D50*'Factors (to hide)'!$B$60*(0.25+(1-VLOOKUP(C50,'1 Data'!$A$15:$C$35,3,FALSE))*0.75),""),""),0) -> 
E51: =IFERROR(IF(AND(A51>='1 Data'!$B$10,A51<='1 Data'!$B$11),IF(C51<>"",VLOOKUP(C51,'1 Data'!$A$15:$C$415,2,FALSE)/1000*D51*'Factors (to hide)'!$B$60*(0.25+(1-VLOOKUP(C51,'1 Data'!$A$15:$C$35,3,FALSE))*0.75),""),""),0) -> 
E52: =IFERROR(IF(AND(A52>='1 Data'!$B$10,A52<='1 Data'!$B$11),IF(C52<>"",VLOOKUP(C52,'1 Data'!$A$15:$C$415,2,FALSE)/1000*D52*'Factors (to hide)'!$B$60*(0.25+(1-VLOOKUP(C52,'1 Data'!$A$15:$C$35,3,FALSE))*0.75),""),""),0) -> 
E53: =IFERROR(IF(AND(A53>='1 Data'!$B$10,A53<='1 Data'!$B$11),IF(C53<>"",VLOOKUP(C53,'1 Data'!$A$15:$C$415,2,FALSE)/1000*D53*'Factors (to hide)'!$B$60*(0.25+(1-VLOOKUP(C53,'1 Data'!$A$15:$C$35,3,FALSE))*0.75),""),""),0) -> 
E54: =IFERROR(IF(AND(A54>='1 Data'!$B$10,A54<='1 Data'!$B$11),IF(C54<>"",VLOOKUP(C54,'1 Data'!$A$15:$C$415,2,FALSE)/1000*D54*'Factors (to hide)'!$B$60*(0.25+(1-VLOOKUP(C54,'1 Data'!$A$15:$C$35,3,FALSE))*0.75),""),""),0) -> 
E55: =IFERROR(IF(AND(A55>='1 Data'!$B$10,A55<='1 Data'!$B$11),IF(C55<>"",VLOOKUP(C55,'1 Data'!$A$15:$C$415,2,FALSE)/1000*D55*'Factors (to hide)'!$B$60*(0.25+(1-VLOOKUP(C55,'1 Data'!$A$15:$C$35,3,FALSE))*0.75),""),""),0) -> 
E56: =IFERROR(IF(AND(A56>='1 Data'!$B$10,A56<='1 Data'!$B$11),IF(C56<>"",VLOOKUP(C56,'1 Data'!$A$15:$C$415,2,FALSE)/1000*D56*'Factors (to hide)'!$B$60*(0.25+(1-VLOOKUP(C56,'1 Data'!$A$15:$C$35,3,FALSE))*0.75),""),""),0) -> 
E57: =IFERROR(IF(AND(A57>='1 Data'!$B$10,A57<='1 Data'!$B$11),IF(C57<>"",VLOOKUP(C57,'1 Data'!$A$15:$C$415,2,FALSE)/1000*D57*'Factors (to hide)'!$B$60*(0.25+(1-VLOOKUP(C57,'1 Data'!$A$15:$C$35,3,FALSE))*0.75),""),""),0) -> 
E58: =IFERROR(IF(AND(A58>='1 Data'!$B$10,A58<='1 Data'!$B$11),IF(C58<>"",VLOOKUP(C58,'1 Data'!$A$15:$C$415,2,FALSE)/1000*D58*'Factors (to hide)'!$B$60*(0.25+(1-VLOOKUP(C58,'1 Data'!$A$15:$C$35,3,FALSE))*0.75),""),""),0) -> 
E59: =IFERROR(IF(AND(A59>='1 Data'!$B$10,A59<='1 Data'!$B$11),IF(C59<>"",VLOOKUP(C59,'1 Data'!$A$15:$C$415,2,FALSE)/1000*D59*'Factors (to hide)'!$B$60*(0.25+(1-VLOOKUP(C59,'1 Data'!$A$15:$C$35,3,FALSE))*0.75),""),""),0) -> 
E60: =IFERROR(IF(AND(A60>='1 Data'!$B$10,A60<='1 Data'!$B$11),IF(C60<>"",VLOOKUP(C60,'1 Data'!$A$15:$C$415,2,FALSE)/1000*D60*'Factors (to hide)'!$B$60*(0.25+(1-VLOOKUP(C60,'1 Data'!$A$15:$C$35,3,FALSE))*0.75),""),""),0) -> 
E61: =IFERROR(IF(AND(A61>='1 Data'!$B$10,A61<='1 Data'!$B$11),IF(C61<>"",VLOOKUP(C61,'1 Data'!$A$15:$C$415,2,FALSE)/1000*D61*'Factors (to hide)'!$B$60*(0.25+(1-VLOOKUP(C61,'1 Data'!$A$15:$C$35,3,FALSE))*0.75),""),""),0) -> 
E62: =IFERROR(IF(AND(A62>='1 Data'!$B$10,A62<='1 Data'!$B$11),IF(C62<>"",VLOOKUP(C62,'1 Data'!$A$15:$C$415,2,FALSE)/1000*D62*'Factors (to hide)'!$B$60*(0.25+(1-VLOOKUP(C62,'1 Data'!$A$15:$C$35,3,FALSE))*0.75),""),""),0) -> 
E63: =IFERROR(IF(AND(A63>='1 Data'!$B$10,A63<='1 Data'!$B$11),IF(C63<>"",VLOOKUP(C63,'1 Data'!$A$15:$C$415,2,FALSE)/1000*D63*'Factors (to hide)'!$B$60*(0.25+(1-VLOOKUP(C63,'1 Data'!$A$15:$C$35,3,FALSE))*0.75),""),""),0) -> 
E64: =IFERROR(IF(AND(A64>='1 Data'!$B$10,A64<='1 Data'!$B$11),IF(C64<>"",VLOOKUP(C64,'1 Data'!$A$15:$C$415,2,FALSE)/1000*D64*'Factors (to hide)'!$B$60*(0.25+(1-VLOOKUP(C64,'1 Data'!$A$15:$C$35,3,FALSE))*0.75),""),""),0) -> 
E65: =IFERROR(IF(AND(A65>='1 Data'!$B$10,A65<='1 Data'!$B$11),IF(C65<>"",VLOOKUP(C65,'1 Data'!$A$15:$C$415,2,FALSE)/1000*D65*'Factors (to hide)'!$B$60*(0.25+(1-VLOOKUP(C65,'1 Data'!$A$15:$C$35,3,FALSE))*0.75),""),""),0) -> 
E66: =IFERROR(IF(AND(A66>='1 Data'!$B$10,A66<='1 Data'!$B$11),IF(C66<>"",VLOOKUP(C66,'1 Data'!$A$15:$C$415,2,FALSE)/1000*D66*'Factors (to hide)'!$B$60*(0.25+(1-VLOOKUP(C66,'1 Data'!$A$15:$C$35,3,FALSE))*0.75),""),""),0) -> 
E67: =IFERROR(IF(AND(A67>='1 Data'!$B$10,A67<='1 Data'!$B$11),IF(C67<>"",VLOOKUP(C67,'1 Data'!$A$15:$C$415,2,FALSE)/1000*D67*'Factors (to hide)'!$B$60*(0.25+(1-VLOOKUP(C67,'1 Data'!$A$15:$C$35,3,FALSE))*0.75),""),""),0) -> 
E68: =IFERROR(IF(AND(A68>='1 Data'!$B$10,A68<='1 Data'!$B$11),IF(C68<>"",VLOOKUP(C68,'1 Data'!$A$15:$C$415,2,FALSE)/1000*D68*'Factors (to hide)'!$B$60*(0.25+(1-VLOOKUP(C68,'1 Data'!$A$15:$C$35,3,FALSE))*0.75),""),""),0) -> 
E69: =IFERROR(IF(AND(A69>='1 Data'!$B$10,A69<='1 Data'!$B$11),IF(C69<>"",VLOOKUP(C69,'1 Data'!$A$15:$C$415,2,FALSE)/1000*D69*'Factors (to hide)'!$B$60*(0.25+(1-VLOOKUP(C69,'1 Data'!$A$15:$C$35,3,FALSE))*0.75),""),""),0) -> 
E70: =IFERROR(IF(AND(A70>='1 Data'!$B$10,A70<='1 Data'!$B$11),IF(C70<>"",VLOOKUP(C70,'1 Data'!$A$15:$C$415,2,FALSE)/1000*D70*'Factors (to hide)'!$B$60*(0.25+(1-VLOOKUP(C70,'1 Data'!$A$15:$C$35,3,FALSE))*0.75),""),""),0) -> 
E71: =IFERROR(IF(AND(A71>='1 Data'!$B$10,A71<='1 Data'!$B$11),IF(C71<>"",VLOOKUP(C71,'1 Data'!$A$15:$C$415,2,FALSE)/1000*D71*'Factors (to hide)'!$B$60*(0.25+(1-VLOOKUP(C71,'1 Data'!$A$15:$C$35,3,FALSE))*0.75),""),""),0) -> 
E72: =IFERROR(IF(AND(A72>='1 Data'!$B$10,A72<='1 Data'!$B$11),IF(C72<>"",VLOOKUP(C72,'1 Data'!$A$15:$C$415,2,FALSE)/1000*D72*'Factors (to hide)'!$B$60*(0.25+(1-VLOOKUP(C72,'1 Data'!$A$15:$C$35,3,FALSE))*0.75),""),""),0) -> 
E73: =IFERROR(IF(AND(A73>='1 Data'!$B$10,A73<='1 Data'!$B$11),IF(C73<>"",VLOOKUP(C73,'1 Data'!$A$15:$C$415,2,FALSE)/1000*D73*'Factors (to hide)'!$B$60*(0.25+(1-VLOOKUP(C73,'1 Data'!$A$15:$C$35,3,FALSE))*0.75),""),""),0) -> 
E74: =IFERROR(IF(AND(A74>='1 Data'!$B$10,A74<='1 Data'!$B$11),IF(C74<>"",VLOOKUP(C74,'1 Data'!$A$15:$C$415,2,FALSE)/1000*D74*'Factors (to hide)'!$B$60*(0.25+(1-VLOOKUP(C74,'1 Data'!$A$15:$C$35,3,FALSE))*0.75),""),""),0) -> 
E75: =IFERROR(IF(AND(A75>='1 Data'!$B$10,A75<='1 Data'!$B$11),IF(C75<>"",VLOOKUP(C75,'1 Data'!$A$15:$C$415,2,FALSE)/1000*D75*'Factors (to hide)'!$B$60*(0.25+(1-VLOOKUP(C75,'1 Data'!$A$15:$C$35,3,FALSE))*0.75),""),""),0) -> 
E76: =IFERROR(IF(AND(A76>='1 Data'!$B$10,A76<='1 Data'!$B$11),IF(C76<>"",VLOOKUP(C76,'1 Data'!$A$15:$C$415,2,FALSE)/1000*D76*'Factors (to hide)'!$B$60*(0.25+(1-VLOOKUP(C76,'1 Data'!$A$15:$C$35,3,FALSE))*0.75),""),""),0) -> 
E77: =IFERROR(IF(AND(A77>='1 Data'!$B$10,A77<='1 Data'!$B$11),IF(C77<>"",VLOOKUP(C77,'1 Data'!$A$15:$C$415,2,FALSE)/1000*D77*'Factors (to hide)'!$B$60*(0.25+(1-VLOOKUP(C77,'1 Data'!$A$15:$C$35,3,FALSE))*0.75),""),""),0) -> 
E78: =IFERROR(IF(AND(A78>='1 Data'!$B$10,A78<='1 Data'!$B$11),IF(C78<>"",VLOOKUP(C78,'1 Data'!$A$15:$C$415,2,FALSE)/1000*D78*'Factors (to hide)'!$B$60*(0.25+(1-VLOOKUP(C78,'1 Data'!$A$15:$C$35,3,FALSE))*0.75),""),""),0) -> 
E79: =IFERROR(IF(AND(A79>='1 Data'!$B$10,A79<='1 Data'!$B$11),IF(C79<>"",VLOOKUP(C79,'1 Data'!$A$15:$C$415,2,FALSE)/1000*D79*'Factors (to hide)'!$B$60*(0.25+(1-VLOOKUP(C79,'1 Data'!$A$15:$C$35,3,FALSE))*0.75),""),""),0) -> 
E80: =IFERROR(IF(AND(A80>='1 Data'!$B$10,A80<='1 Data'!$B$11),IF(C80<>"",VLOOKUP(C80,'1 Data'!$A$15:$C$415,2,FALSE)/1000*D80*'Factors (to hide)'!$B$60*(0.25+(1-VLOOKUP(C80,'1 Data'!$A$15:$C$35,3,FALSE))*0.75),""),""),0) -> 
E81: =IFERROR(IF(AND(A81>='1 Data'!$B$10,A81<='1 Data'!$B$11),IF(C81<>"",VLOOKUP(C81,'1 Data'!$A$15:$C$415,2,FALSE)/1000*D81*'Factors (to hide)'!$B$60*(0.25+(1-VLOOKUP(C81,'1 Data'!$A$15:$C$35,3,FALSE))*0.75),""),""),0) -> 
E82: =IFERROR(IF(AND(A82>='1 Data'!$B$10,A82<='1 Data'!$B$11),IF(C82<>"",VLOOKUP(C82,'1 Data'!$A$15:$C$415,2,FALSE)/1000*D82*'Factors (to hide)'!$B$60*(0.25+(1-VLOOKUP(C82,'1 Data'!$A$15:$C$35,3,FALSE))*0.75),""),""),0) -> 
E83: =IFERROR(IF(AND(A83>='1 Data'!$B$10,A83<='1 Data'!$B$11),IF(C83<>"",VLOOKUP(C83,'1 Data'!$A$15:$C$415,2,FALSE)/1000*D83*'Factors (to hide)'!$B$60*(0.25+(1-VLOOKUP(C83,'1 Data'!$A$15:$C$35,3,FALSE))*0.75),""),""),0) -> 
E84: =IFERROR(IF(AND(A84>='1 Data'!$B$10,A84<='1 Data'!$B$11),IF(C84<>"",VLOOKUP(C84,'1 Data'!$A$15:$C$415,2,FALSE)/1000*D84*'Factors (to hide)'!$B$60*(0.25+(1-VLOOKUP(C84,'1 Data'!$A$15:$C$35,3,FALSE))*0.75),""),""),0) -> 
E85: =IFERROR(IF(AND(A85>='1 Data'!$B$10,A85<='1 Data'!$B$11),IF(C85<>"",VLOOKUP(C85,'1 Data'!$A$15:$C$415,2,FALSE)/1000*D85*'Factors (to hide)'!$B$60*(0.25+(1-VLOOKUP(C85,'1 Data'!$A$15:$C$35,3,FALSE))*0.75),""),""),0) -> 
E86: =IFERROR(IF(AND(A86>='1 Data'!$B$10,A86<='1 Data'!$B$11),IF(C86<>"",VLOOKUP(C86,'1 Data'!$A$15:$C$415,2,FALSE)/1000*D86*'Factors (to hide)'!$B$60*(0.25+(1-VLOOKUP(C86,'1 Data'!$A$15:$C$35,3,FALSE))*0.75),""),""),0) -> 
E87: =IFERROR(IF(AND(A87>='1 Data'!$B$10,A87<='1 Data'!$B$11),IF(C87<>"",VLOOKUP(C87,'1 Data'!$A$15:$C$415,2,FALSE)/1000*D87*'Factors (to hide)'!$B$60*(0.25+(1-VLOOKUP(C87,'1 Data'!$A$15:$C$35,3,FALSE))*0.75),""),""),0) -> 
E88: =IFERROR(IF(AND(A88>='1 Data'!$B$10,A88<='1 Data'!$B$11),IF(C88<>"",VLOOKUP(C88,'1 Data'!$A$15:$C$415,2,FALSE)/1000*D88*'Factors (to hide)'!$B$60*(0.25+(1-VLOOKUP(C88,'1 Data'!$A$15:$C$35,3,FALSE))*0.75),""),""),0) -> 
E89: =IFERROR(IF(AND(A89>='1 Data'!$B$10,A89<='1 Data'!$B$11),IF(C89<>"",VLOOKUP(C89,'1 Data'!$A$15:$C$415,2,FALSE)/1000*D89*'Factors (to hide)'!$B$60*(0.25+(1-VLOOKUP(C89,'1 Data'!$A$15:$C$35,3,FALSE))*0.75),""),""),0) -> 
E90: =IFERROR(IF(AND(A90>='1 Data'!$B$10,A90<='1 Data'!$B$11),IF(C90<>"",VLOOKUP(C90,'1 Data'!$A$15:$C$415,2,FALSE)/1000*D90*'Factors (to hide)'!$B$60*(0.25+(1-VLOOKUP(C90,'1 Data'!$A$15:$C$35,3,FALSE))*0.75),""),""),0) -> 
E91: =IFERROR(IF(AND(A91>='1 Data'!$B$10,A91<='1 Data'!$B$11),IF(C91<>"",VLOOKUP(C91,'1 Data'!$A$15:$C$415,2,FALSE)/1000*D91*'Factors (to hide)'!$B$60*(0.25+(1-VLOOKUP(C91,'1 Data'!$A$15:$C$35,3,FALSE))*0.75),""),""),0) -> 
E92: =IFERROR(IF(AND(A92>='1 Data'!$B$10,A92<='1 Data'!$B$11),IF(C92<>"",VLOOKUP(C92,'1 Data'!$A$15:$C$415,2,FALSE)/1000*D92*'Factors (to hide)'!$B$60*(0.25+(1-VLOOKUP(C92,'1 Data'!$A$15:$C$35,3,FALSE))*0.75),""),""),0) -> 
E93: =IFERROR(IF(AND(A93>='1 Data'!$B$10,A93<='1 Data'!$B$11),IF(C93<>"",VLOOKUP(C93,'1 Data'!$A$15:$C$415,2,FALSE)/1000*D93*'Factors (to hide)'!$B$60*(0.25+(1-VLOOKUP(C93,'1 Data'!$A$15:$C$35,3,FALSE))*0.75),""),""),0) -> 
E94: =IFERROR(IF(AND(A94>='1 Data'!$B$10,A94<='1 Data'!$B$11),IF(C94<>"",VLOOKUP(C94,'1 Data'!$A$15:$C$415,2,FALSE)/1000*D94*'Factors (to hide)'!$B$60*(0.25+(1-VLOOKUP(C94,'1 Data'!$A$15:$C$35,3,FALSE))*0.75),""),""),0) -> 
E95: =IFERROR(IF(AND(A95>='1 Data'!$B$10,A95<='1 Data'!$B$11),IF(C95<>"",VLOOKUP(C95,'1 Data'!$A$15:$C$415,2,FALSE)/1000*D95*'Factors (to hide)'!$B$60*(0.25+(1-VLOOKUP(C95,'1 Data'!$A$15:$C$35,3,FALSE))*0.75),""),""),0) -> 
E96: =IFERROR(IF(AND(A96>='1 Data'!$B$10,A96<='1 Data'!$B$11),IF(C96<>"",VLOOKUP(C96,'1 Data'!$A$15:$C$415,2,FALSE)/1000*D96*'Factors (to hide)'!$B$60*(0.25+(1-VLOOKUP(C96,'1 Data'!$A$15:$C$35,3,FALSE))*0.75),""),""),0) -> 
E97: =IFERROR(IF(AND(A97>='1 Data'!$B$10,A97<='1 Data'!$B$11),IF(C97<>"",VLOOKUP(C97,'1 Data'!$A$15:$C$415,2,FALSE)/1000*D97*'Factors (to hide)'!$B$60*(0.25+(1-VLOOKUP(C97,'1 Data'!$A$15:$C$35,3,FALSE))*0.75),""),""),0) -> 
E98: =IFERROR(IF(AND(A98>='1 Data'!$B$10,A98<='1 Data'!$B$11),IF(C98<>"",VLOOKUP(C98,'1 Data'!$A$15:$C$415,2,FALSE)/1000*D98*'Factors (to hide)'!$B$60*(0.25+(1-VLOOKUP(C98,'1 Data'!$A$15:$C$35,3,FALSE))*0.75),""),""),0) -> 
E99: =IFERROR(IF(AND(A99>='1 Data'!$B$10,A99<='1 Data'!$B$11),IF(C99<>"",VLOOKUP(C99,'1 Data'!$A$15:$C$415,2,FALSE)/1000*D99*'Factors (to hide)'!$B$60*(0.25+(1-VLOOKUP(C99,'1 Data'!$A$15:$C$35,3,FALSE))*0.75),""),""),0) -> 
E100: =IFERROR(IF(AND(A100>='1 Data'!$B$10,A100<='1 Data'!$B$11),IF(C100<>"",VLOOKUP(C100,'1 Data'!$A$15:$C$415,2,FALSE)/1000*D100*'Factors (to hide)'!$B$60*(0.25+(1-VLOOKUP(C100,'1 Data'!$A$15:$C$35,3,FALSE))*0.75),""),""),0) -> 

Sheet 8 Road Fuel
A1: =+'1 Data'!B8 -> The Example Company | G1: Data Complete?
A2: ="For the period from "&TEXT('1 Data'!B10,"d mmmm yyyy")&" to "&TEXT('1 Data'!B11,"d mmmm yyyy") -> For the period from 0 January 1900 to 0 January 1900 | G2: No
A3: Road fuel purchases for business use
A8: Total for period | E8: =SUM(E10:E100) -> 0 | F8: =SUM(F10:F100) -> 0
A9: Date | B9: Description | C9: Type of fuel | D9: £ | E9: Litres | F9: CO2e
E10: =+IFERROR(D10/VLOOKUP(A10,'Factors (to hide)'!$A$73:$F$82,MATCH(C10,'Factors (to hide)'!$B$71:$F$71,0)+1),0) -> 0 | F10: =+IFERROR(E10*(VLOOKUP(C10,'Factors (to hide)'!A:B,2,FALSE)),"") -> 
E11: =+IFERROR(D11/VLOOKUP(A11,'Factors (to hide)'!$A$73:$F$82,MATCH(C11,'Factors (to hide)'!$B$71:$F$71,0)+1),0) -> 0 | F11: =+IFERROR(E11*(VLOOKUP(C11,'Factors (to hide)'!A:B,2,FALSE)),"") -> 
E12: =+IFERROR(D12/VLOOKUP(A12,'Factors (to hide)'!$A$73:$F$82,MATCH(C12,'Factors (to hide)'!$B$71:$F$71,0)+1),0) -> 0 | F12: =+IFERROR(E12*(VLOOKUP(C12,'Factors (to hide)'!A:B,2,FALSE)),"") -> 
E13: =+IFERROR(D13/VLOOKUP(A13,'Factors (to hide)'!$A$73:$F$82,MATCH(C13,'Factors (to hide)'!$B$71:$F$71,0)+1),0) -> 0 | F13: =+IFERROR(E13*(VLOOKUP(C13,'Factors (to hide)'!A:B,2,FALSE)),"") -> 
E14: =+IFERROR(D14/VLOOKUP(A14,'Factors (to hide)'!$A$73:$F$82,MATCH(C14,'Factors (to hide)'!$B$71:$F$71,0)+1),0) -> 0 | F14: =+IFERROR(E14*(VLOOKUP(C14,'Factors (to hide)'!A:B,2,FALSE)),"") -> 
E15: =+IFERROR(D15/VLOOKUP(A15,'Factors (to hide)'!$A$73:$F$82,MATCH(C15,'Factors (to hide)'!$B$71:$F$71,0)+1),0) -> 0 | F15: =+IFERROR(E15*(VLOOKUP(C15,'Factors (to hide)'!A:B,2,FALSE)),"") -> 
E16: =+IFERROR(D16/VLOOKUP(A16,'Factors (to hide)'!$A$73:$F$82,MATCH(C16,'Factors (to hide)'!$B$71:$F$71,0)+1),0) -> 0 | F16: =+IFERROR(E16*(VLOOKUP(C16,'Factors (to hide)'!A:B,2,FALSE)),"") -> 
E17: =+IFERROR(D17/VLOOKUP(A17,'Factors (to hide)'!$A$73:$F$82,MATCH(C17,'Factors (to hide)'!$B$71:$F$71,0)+1),0) -> 0 | F17: =+IFERROR(E17*(VLOOKUP(C17,'Factors (to hide)'!A:B,2,FALSE)),"") -> 
E18: =+IFERROR(D18/VLOOKUP(A18,'Factors (to hide)'!$A$73:$F$82,MATCH(C18,'Factors (to hide)'!$B$71:$F$71,0)+1),0) -> 0 | F18: =+IFERROR(E18*(VLOOKUP(C18,'Factors (to hide)'!A:B,2,FALSE)),"") -> 
E19: =+IFERROR(D19/VLOOKUP(A19,'Factors (to hide)'!$A$73:$F$82,MATCH(C19,'Factors (to hide)'!$B$71:$F$71,0)+1),0) -> 0 | F19: =+IFERROR(E19*(VLOOKUP(C19,'Factors (to hide)'!A:B,2,FALSE)),"") -> 
E20: =+IFERROR(D20/VLOOKUP(A20,'Factors (to hide)'!$A$73:$F$82,MATCH(C20,'Factors (to hide)'!$B$71:$F$71,0)+1),0) -> 0 | F20: =+IFERROR(E20*(VLOOKUP(C20,'Factors (to hide)'!A:B,2,FALSE)),"") -> 
E21: =+IFERROR(D21/VLOOKUP(A21,'Factors (to hide)'!$A$73:$F$82,MATCH(C21,'Factors (to hide)'!$B$71:$F$71,0)+1),0) -> 0 | F21: =+IFERROR(E21*(VLOOKUP(C21,'Factors (to hide)'!A:B,2,FALSE)),"") -> 
E22: =+IFERROR(D22/VLOOKUP(A22,'Factors (to hide)'!$A$73:$F$82,MATCH(C22,'Factors (to hide)'!$B$71:$F$71,0)+1),0) -> 0 | F22: =+IFERROR(E22*(VLOOKUP(C22,'Factors (to hide)'!A:B,2,FALSE)),"") -> 
E23: =+IFERROR(D23/VLOOKUP(A23,'Factors (to hide)'!$A$73:$F$82,MATCH(C23,'Factors (to hide)'!$B$71:$F$71,0)+1),0) -> 0 | F23: =+IFERROR(E23*(VLOOKUP(C23,'Factors (to hide)'!A:B,2,FALSE)),"") -> 
E24: =+IFERROR(D24/VLOOKUP(A24,'Factors (to hide)'!$A$73:$F$82,MATCH(C24,'Factors (to hide)'!$B$71:$F$71,0)+1),0) -> 0 | F24: =+IFERROR(E24*(VLOOKUP(C24,'Factors (to hide)'!A:B,2,FALSE)),"") -> 
E25: =+IFERROR(D25/VLOOKUP(A25,'Factors (to hide)'!$A$73:$F$82,MATCH(C25,'Factors (to hide)'!$B$71:$F$71,0)+1),0) -> 0 | F25: =+IFERROR(E25*(VLOOKUP(C25,'Factors (to hide)'!A:B,2,FALSE)),"") -> 
E26: =+IFERROR(D26/VLOOKUP(A26,'Factors (to hide)'!$A$73:$F$82,MATCH(C26,'Factors (to hide)'!$B$71:$F$71,0)+1),0) -> 0 | F26: =+IFERROR(E26*(VLOOKUP(C26,'Factors (to hide)'!A:B,2,FALSE)),"") -> 
E27: =+IFERROR(D27/VLOOKUP(A27,'Factors (to hide)'!$A$73:$F$82,MATCH(C27,'Factors (to hide)'!$B$71:$F$71,0)+1),0) -> 0 | F27: =+IFERROR(E27*(VLOOKUP(C27,'Factors (to hide)'!A:B,2,FALSE)),"") -> 
E28: =+IFERROR(D28/VLOOKUP(A28,'Factors (to hide)'!$A$73:$F$82,MATCH(C28,'Factors (to hide)'!$B$71:$F$71,0)+1),0) -> 0 | F28: =+IFERROR(E28*(VLOOKUP(C28,'Factors (to hide)'!A:B,2,FALSE)),"") -> 
E29: =+IFERROR(D29/VLOOKUP(A29,'Factors (to hide)'!$A$73:$F$82,MATCH(C29,'Factors (to hide)'!$B$71:$F$71,0)+1),0) -> 0 | F29: =+IFERROR(E29*(VLOOKUP(C29,'Factors (to hide)'!A:B,2,FALSE)),"") -> 
E30: =+IFERROR(D30/VLOOKUP(A30,'Factors (to hide)'!$A$73:$F$82,MATCH(C30,'Factors (to hide)'!$B$71:$F$71,0)+1),0) -> 0 | F30: =+IFERROR(E30*(VLOOKUP(C30,'Factors (to hide)'!A:B,2,FALSE)),"") -> 
E31: =+IFERROR(D31/VLOOKUP(A31,'Factors (to hide)'!$A$73:$F$82,MATCH(C31,'Factors (to hide)'!$B$71:$F$71,0)+1),0) -> 0 | F31: =+IFERROR(E31*(VLOOKUP(C31,'Factors (to hide)'!A:B,2,FALSE)),"") -> 
E32: =+IFERROR(D32/VLOOKUP(A32,'Factors (to hide)'!$A$73:$F$82,MATCH(C32,'Factors (to hide)'!$B$71:$F$71,0)+1),0) -> 0 | F32: =+IFERROR(E32*(VLOOKUP(C32,'Factors (to hide)'!A:B,2,FALSE)),"") -> 
E33: =+IFERROR(D33/VLOOKUP(A33,'Factors (to hide)'!$A$73:$F$82,MATCH(C33,'Factors (to hide)'!$B$71:$F$71,0)+1),0) -> 0 | F33: =+IFERROR(E33*(VLOOKUP(C33,'Factors (to hide)'!A:B,2,FALSE)),"") -> 
E34: =+IFERROR(D34/VLOOKUP(A34,'Factors (to hide)'!$A$73:$F$82,MATCH(C34,'Factors (to hide)'!$B$71:$F$71,0)+1),0) -> 0 | F34: =+IFERROR(E34*(VLOOKUP(C34,'Factors (to hide)'!A:B,2,FALSE)),"") -> 
E35: =+IFERROR(D35/VLOOKUP(A35,'Factors (to hide)'!$A$73:$F$82,MATCH(C35,'Factors (to hide)'!$B$71:$F$71,0)+1),0) -> 0 | F35: =+IFERROR(E35*(VLOOKUP(C35,'Factors (to hide)'!A:B,2,FALSE)),"") -> 
E36: =+IFERROR(D36/VLOOKUP(A36,'Factors (to hide)'!$A$73:$F$82,MATCH(C36,'Factors (to hide)'!$B$71:$F$71,0)+1),0) -> 0 | F36: =+IFERROR(E36*(VLOOKUP(C36,'Factors (to hide)'!A:B,2,FALSE)),"") -> 
E37: =+IFERROR(D37/VLOOKUP(A37,'Factors (to hide)'!$A$73:$F$82,MATCH(C37,'Factors (to hide)'!$B$71:$F$71,0)+1),0) -> 0 | F37: =+IFERROR(E37*(VLOOKUP(C37,'Factors (to hide)'!A:B,2,FALSE)),"") -> 
E38: =+IFERROR(D38/VLOOKUP(A38,'Factors (to hide)'!$A$73:$F$82,MATCH(C38,'Factors (to hide)'!$B$71:$F$71,0)+1),0) -> 0 | F38: =+IFERROR(E38*(VLOOKUP(C38,'Factors (to hide)'!A:B,2,FALSE)),"") -> 
E39: =+IFERROR(D39/VLOOKUP(A39,'Factors (to hide)'!$A$73:$F$82,MATCH(C39,'Factors (to hide)'!$B$71:$F$71,0)+1),0) -> 0 | F39: =+IFERROR(E39*(VLOOKUP(C39,'Factors (to hide)'!A:B,2,FALSE)),"") -> 
E40: =+IFERROR(D40/VLOOKUP(A40,'Factors (to hide)'!$A$73:$F$82,MATCH(C40,'Factors (to hide)'!$B$71:$F$71,0)+1),0) -> 0 | F40: =+IFERROR(E40*(VLOOKUP(C40,'Factors (to hide)'!A:B,2,FALSE)),"") -> 
E41: =+IFERROR(D41/VLOOKUP(A41,'Factors (to hide)'!$A$73:$F$82,MATCH(C41,'Factors (to hide)'!$B$71:$F$71,0)+1),0) -> 0 | F41: =+IFERROR(E41*(VLOOKUP(C41,'Factors (to hide)'!A:B,2,FALSE)),"") -> 
E42: =+IFERROR(D42/VLOOKUP(A42,'Factors (to hide)'!$A$73:$F$82,MATCH(C42,'Factors (to hide)'!$B$71:$F$71,0)+1),0) -> 0 | F42: =+IFERROR(E42*(VLOOKUP(C42,'Factors (to hide)'!A:B,2,FALSE)),"") -> 
E43: =+IFERROR(D43/VLOOKUP(A43,'Factors (to hide)'!$A$73:$F$82,MATCH(C43,'Factors (to hide)'!$B$71:$F$71,0)+1),0) -> 0 | F43: =+IFERROR(E43*(VLOOKUP(C43,'Factors (to hide)'!A:B,2,FALSE)),"") -> 
E44: =+IFERROR(D44/VLOOKUP(A44,'Factors (to hide)'!$A$73:$F$82,MATCH(C44,'Factors (to hide)'!$B$71:$F$71,0)+1),0) -> 0 | F44: =+IFERROR(E44*(VLOOKUP(C44,'Factors (to hide)'!A:B,2,FALSE)),"") -> 
E45: =+IFERROR(D45/VLOOKUP(A45,'Factors (to hide)'!$A$73:$F$82,MATCH(C45,'Factors (to hide)'!$B$71:$F$71,0)+1),0) -> 0 | F45: =+IFERROR(E45*(VLOOKUP(C45,'Factors (to hide)'!A:B,2,FALSE)),"") -> 
E46: =+IFERROR(D46/VLOOKUP(A46,'Factors (to hide)'!$A$73:$F$82,MATCH(C46,'Factors (to hide)'!$B$71:$F$71,0)+1),0) -> 0 | F46: =+IFERROR(E46*(VLOOKUP(C46,'Factors (to hide)'!A:B,2,FALSE)),"") -> 
E47: =+IFERROR(D47/VLOOKUP(A47,'Factors (to hide)'!$A$73:$F$82,MATCH(C47,'Factors (to hide)'!$B$71:$F$71,0)+1),0) -> 0 | F47: =+IFERROR(E47*(VLOOKUP(C47,'Factors (to hide)'!A:B,2,FALSE)),"") -> 
E48: =+IFERROR(D48/VLOOKUP(A48,'Factors (to hide)'!$A$73:$F$82,MATCH(C48,'Factors (to hide)'!$B$71:$F$71,0)+1),0) -> 0 | F48: =+IFERROR(E48*(VLOOKUP(C48,'Factors (to hide)'!A:B,2,FALSE)),"") -> 
E49: =+IFERROR(D49/VLOOKUP(A49,'Factors (to hide)'!$A$73:$F$82,MATCH(C49,'Factors (to hide)'!$B$71:$F$71,0)+1),0) -> 0 | F49: =+IFERROR(E49*(VLOOKUP(C49,'Factors (to hide)'!A:B,2,FALSE)),"") -> 
E50: =+IFERROR(D50/VLOOKUP(A50,'Factors (to hide)'!$A$73:$F$82,MATCH(C50,'Factors (to hide)'!$B$71:$F$71,0)+1),0) -> 0 | F50: =+IFERROR(E50*(VLOOKUP(C50,'Factors (to hide)'!A:B,2,FALSE)),"") -> 
E51: =+IFERROR(D51/VLOOKUP(A51,'Factors (to hide)'!$A$73:$F$82,MATCH(C51,'Factors (to hide)'!$B$71:$F$71,0)+1),0) -> 0 | F51: =+IFERROR(E51*(VLOOKUP(C51,'Factors (to hide)'!A:B,2,FALSE)),"") -> 
E52: =+IFERROR(D52/VLOOKUP(A52,'Factors (to hide)'!$A$73:$F$82,MATCH(C52,'Factors (to hide)'!$B$71:$F$71,0)+1),0) -> 0 | F52: =+IFERROR(E52*(VLOOKUP(C52,'Factors (to hide)'!A:B,2,FALSE)),"") -> 
E53: =+IFERROR(D53/VLOOKUP(A53,'Factors (to hide)'!$A$73:$F$82,MATCH(C53,'Factors (to hide)'!$B$71:$F$71,0)+1),0) -> 0 | F53: =+IFERROR(E53*(VLOOKUP(C53,'Factors (to hide)'!A:B,2,FALSE)),"") -> 
E54: =+IFERROR(D54/VLOOKUP(A54,'Factors (to hide)'!$A$73:$F$82,MATCH(C54,'Factors (to hide)'!$B$71:$F$71,0)+1),0) -> 0 | F54: =+IFERROR(E54*(VLOOKUP(C54,'Factors (to hide)'!A:B,2,FALSE)),"") -> 
E55: =+IFERROR(D55/VLOOKUP(A55,'Factors (to hide)'!$A$73:$F$82,MATCH(C55,'Factors (to hide)'!$B$71:$F$71,0)+1),0) -> 0 | F55: =+IFERROR(E55*(VLOOKUP(C55,'Factors (to hide)'!A:B,2,FALSE)),"") -> 
E56: =+IFERROR(D56/VLOOKUP(A56,'Factors (to hide)'!$A$73:$F$82,MATCH(C56,'Factors (to hide)'!$B$71:$F$71,0)+1),0) -> 0 | F56: =+IFERROR(E56*(VLOOKUP(C56,'Factors (to hide)'!A:B,2,FALSE)),"") -> 
E57: =+IFERROR(D57/VLOOKUP(A57,'Factors (to hide)'!$A$73:$F$82,MATCH(C57,'Factors (to hide)'!$B$71:$F$71,0)+1),0) -> 0 | F57: =+IFERROR(E57*(VLOOKUP(C57,'Factors (to hide)'!A:B,2,FALSE)),"") -> 
E58: =+IFERROR(D58/VLOOKUP(A58,'Factors (to hide)'!$A$73:$F$82,MATCH(C58,'Factors (to hide)'!$B$71:$F$71,0)+1),0) -> 0 | F58: =+IFERROR(E58*(VLOOKUP(C58,'Factors (to hide)'!A:B,2,FALSE)),"") -> 
E59: =+IFERROR(D59/VLOOKUP(A59,'Factors (to hide)'!$A$73:$F$82,MATCH(C59,'Factors (to hide)'!$B$71:$F$71,0)+1),0) -> 0 | F59: =+IFERROR(E59*(VLOOKUP(C59,'Factors (to hide)'!A:B,2,FALSE)),"") -> 
E60: =+IFERROR(D60/VLOOKUP(A60,'Factors (to hide)'!$A$73:$F$82,MATCH(C60,'Factors (to hide)'!$B$71:$F$71,0)+1),0) -> 0 | F60: =+IFERROR(E60*(VLOOKUP(C60,'Factors (to hide)'!A:B,2,FALSE)),"") -> 
E61: =+IFERROR(D61/VLOOKUP(A61,'Factors (to hide)'!$A$73:$F$82,MATCH(C61,'Factors (to hide)'!$B$71:$F$71,0)+1),0) -> 0 | F61: =+IFERROR(E61*(VLOOKUP(C61,'Factors (to hide)'!A:B,2,FALSE)),"") -> 
E62: =+IFERROR(D62/VLOOKUP(A62,'Factors (to hide)'!$A$73:$F$82,MATCH(C62,'Factors (to hide)'!$B$71:$F$71,0)+1),0) -> 0 | F62: =+IFERROR(E62*(VLOOKUP(C62,'Factors (to hide)'!A:B,2,FALSE)),"") -> 
E63: =+IFERROR(D63/VLOOKUP(A63,'Factors (to hide)'!$A$73:$F$82,MATCH(C63,'Factors (to hide)'!$B$71:$F$71,0)+1),0) -> 0 | F63: =+IFERROR(E63*(VLOOKUP(C63,'Factors (to hide)'!A:B,2,FALSE)),"") -> 
E64: =+IFERROR(D64/VLOOKUP(A64,'Factors (to hide)'!$A$73:$F$82,MATCH(C64,'Factors (to hide)'!$B$71:$F$71,0)+1),0) -> 0 | F64: =+IFERROR(E64*(VLOOKUP(C64,'Factors (to hide)'!A:B,2,FALSE)),"") -> 
E65: =+IFERROR(D65/VLOOKUP(A65,'Factors (to hide)'!$A$73:$F$82,MATCH(C65,'Factors (to hide)'!$B$71:$F$71,0)+1),0) -> 0 | F65: =+IFERROR(E65*(VLOOKUP(C65,'Factors (to hide)'!A:B,2,FALSE)),"") -> 
E66: =+IFERROR(D66/VLOOKUP(A66,'Factors (to hide)'!$A$73:$F$82,MATCH(C66,'Factors (to hide)'!$B$71:$F$71,0)+1),0) -> 0 | F66: =+IFERROR(E66*(VLOOKUP(C66,'Factors (to hide)'!A:B,2,FALSE)),"") -> 
E67: =+IFERROR(D67/VLOOKUP(A67,'Factors (to hide)'!$A$73:$F$82,MATCH(C67,'Factors (to hide)'!$B$71:$F$71,0)+1),0) -> 0 | F67: =+IFERROR(E67*(VLOOKUP(C67,'Factors (to hide)'!A:B,2,FALSE)),"") -> 
E68: =+IFERROR(D68/VLOOKUP(A68,'Factors (to hide)'!$A$73:$F$82,MATCH(C68,'Factors (to hide)'!$B$71:$F$71,0)+1),0) -> 0 | F68: =+IFERROR(E68*(VLOOKUP(C68,'Factors (to hide)'!A:B,2,FALSE)),"") -> 
E69: =+IFERROR(D69/VLOOKUP(A69,'Factors (to hide)'!$A$73:$F$82,MATCH(C69,'Factors (to hide)'!$B$71:$F$71,0)+1),0) -> 0 | F69: =+IFERROR(E69*(VLOOKUP(C69,'Factors (to hide)'!A:B,2,FALSE)),"") -> 
E70: =+IFERROR(D70/VLOOKUP(A70,'Factors (to hide)'!$A$73:$F$82,MATCH(C70,'Factors (to hide)'!$B$71:$F$71,0)+1),0) -> 0 | F70: =+IFERROR(E70*(VLOOKUP(C70,'Factors (to hide)'!A:B,2,FALSE)),"") -> 
E71: =+IFERROR(D71/VLOOKUP(A71,'Factors (to hide)'!$A$73:$F$82,MATCH(C71,'Factors (to hide)'!$B$71:$F$71,0)+1),0) -> 0 | F71: =+IFERROR(E71*(VLOOKUP(C71,'Factors (to hide)'!A:B,2,FALSE)),"") -> 
E72: =+IFERROR(D72/VLOOKUP(A72,'Factors (to hide)'!$A$73:$F$82,MATCH(C72,'Factors (to hide)'!$B$71:$F$71,0)+1),0) -> 0 | F72: =+IFERROR(E72*(VLOOKUP(C72,'Factors (to hide)'!A:B,2,FALSE)),"") -> 
E73: =+IFERROR(D73/VLOOKUP(A73,'Factors (to hide)'!$A$73:$F$82,MATCH(C73,'Factors (to hide)'!$B$71:$F$71,0)+1),0) -> 0 | F73: =+IFERROR(E73*(VLOOKUP(C73,'Factors (to hide)'!A:B,2,FALSE)),"") -> 
E74: =+IFERROR(D74/VLOOKUP(A74,'Factors (to hide)'!$A$73:$F$82,MATCH(C74,'Factors (to hide)'!$B$71:$F$71,0)+1),0) -> 0 | F74: =+IFERROR(E74*(VLOOKUP(C74,'Factors (to hide)'!A:B,2,FALSE)),"") -> 
E75: =+IFERROR(D75/VLOOKUP(A75,'Factors (to hide)'!$A$73:$F$82,MATCH(C75,'Factors (to hide)'!$B$71:$F$71,0)+1),0) -> 0 | F75: =+IFERROR(E75*(VLOOKUP(C75,'Factors (to hide)'!A:B,2,FALSE)),"") -> 
E76: =+IFERROR(D76/VLOOKUP(A76,'Factors (to hide)'!$A$73:$F$82,MATCH(C76,'Factors (to hide)'!$B$71:$F$71,0)+1),0) -> 0 | F76: =+IFERROR(E76*(VLOOKUP(C76,'Factors (to hide)'!A:B,2,FALSE)),"") -> 
E77: =+IFERROR(D77/VLOOKUP(A77,'Factors (to hide)'!$A$73:$F$82,MATCH(C77,'Factors (to hide)'!$B$71:$F$71,0)+1),0) -> 0 | F77: =+IFERROR(E77*(VLOOKUP(C77,'Factors (to hide)'!A:B,2,FALSE)),"") -> 
E78: =+IFERROR(D78/VLOOKUP(A78,'Factors (to hide)'!$A$73:$F$82,MATCH(C78,'Factors (to hide)'!$B$71:$F$71,0)+1),0) -> 0 | F78: =+IFERROR(E78*(VLOOKUP(C78,'Factors (to hide)'!A:B,2,FALSE)),"") -> 
E79: =+IFERROR(D79/VLOOKUP(A79,'Factors (to hide)'!$A$73:$F$82,MATCH(C79,'Factors (to hide)'!$B$71:$F$71,0)+1),0) -> 0 | F79: =+IFERROR(E79*(VLOOKUP(C79,'Factors (to hide)'!A:B,2,FALSE)),"") -> 
E80: =+IFERROR(D80/VLOOKUP(A80,'Factors (to hide)'!$A$73:$F$82,MATCH(C80,'Factors (to hide)'!$B$71:$F$71,0)+1),0) -> 0 | F80: =+IFERROR(E80*(VLOOKUP(C80,'Factors (to hide)'!A:B,2,FALSE)),"") -> 
E81: =+IFERROR(D81/VLOOKUP(A81,'Factors (to hide)'!$A$73:$F$82,MATCH(C81,'Factors (to hide)'!$B$71:$F$71,0)+1),0) -> 0 | F81: =+IFERROR(E81*(VLOOKUP(C81,'Factors (to hide)'!A:B,2,FALSE)),"") -> 
E82: =+IFERROR(D82/VLOOKUP(A82,'Factors (to hide)'!$A$73:$F$82,MATCH(C82,'Factors (to hide)'!$B$71:$F$71,0)+1),0) -> 0 | F82: =+IFERROR(E82*(VLOOKUP(C82,'Factors (to hide)'!A:B,2,FALSE)),"") -> 
E83: =+IFERROR(D83/VLOOKUP(A83,'Factors (to hide)'!$A$73:$F$82,MATCH(C83,'Factors (to hide)'!$B$71:$F$71,0)+1),0) -> 0 | F83: =+IFERROR(E83*(VLOOKUP(C83,'Factors (to hide)'!A:B,2,FALSE)),"") -> 
E84: =+IFERROR(D84/VLOOKUP(A84,'Factors (to hide)'!$A$73:$F$82,MATCH(C84,'Factors (to hide)'!$B$71:$F$71,0)+1),0) -> 0 | F84: =+IFERROR(E84*(VLOOKUP(C84,'Factors (to hide)'!A:B,2,FALSE)),"") -> 
E85: =+IFERROR(D85/VLOOKUP(A85,'Factors (to hide)'!$A$73:$F$82,MATCH(C85,'Factors (to hide)'!$B$71:$F$71,0)+1),0) -> 0 | F85: =+IFERROR(E85*(VLOOKUP(C85,'Factors (to hide)'!A:B,2,FALSE)),"") -> 
E86: =+IFERROR(D86/VLOOKUP(A86,'Factors (to hide)'!$A$73:$F$82,MATCH(C86,'Factors (to hide)'!$B$71:$F$71,0)+1),0) -> 0 | F86: =+IFERROR(E86*(VLOOKUP(C86,'Factors (to hide)'!A:B,2,FALSE)),"") -> 
E87: =+IFERROR(D87/VLOOKUP(A87,'Factors (to hide)'!$A$73:$F$82,MATCH(C87,'Factors (to hide)'!$B$71:$F$71,0)+1),0) -> 0 | F87: =+IFERROR(E87*(VLOOKUP(C87,'Factors (to hide)'!A:B,2,FALSE)),"") -> 
E88: =+IFERROR(D88/VLOOKUP(A88,'Factors (to hide)'!$A$73:$F$82,MATCH(C88,'Factors (to hide)'!$B$71:$F$71,0)+1),0) -> 0 | F88: =+IFERROR(E88*(VLOOKUP(C88,'Factors (to hide)'!A:B,2,FALSE)),"") -> 
E89: =+IFERROR(D89/VLOOKUP(A89,'Factors (to hide)'!$A$73:$F$82,MATCH(C89,'Factors (to hide)'!$B$71:$F$71,0)+1),0) -> 0 | F89: =+IFERROR(E89*(VLOOKUP(C89,'Factors (to hide)'!A:B,2,FALSE)),"") -> 
E90: =+IFERROR(D90/VLOOKUP(A90,'Factors (to hide)'!$A$73:$F$82,MATCH(C90,'Factors (to hide)'!$B$71:$F$71,0)+1),0) -> 0 | F90: =+IFERROR(E90*(VLOOKUP(C90,'Factors (to hide)'!A:B,2,FALSE)),"") -> 
E91: =+IFERROR(D91/VLOOKUP(A91,'Factors (to hide)'!$A$73:$F$82,MATCH(C91,'Factors (to hide)'!$B$71:$F$71,0)+1),0) -> 0 | F91: =+IFERROR(E91*(VLOOKUP(C91,'Factors (to hide)'!A:B,2,FALSE)),"") -> 
E92: =+IFERROR(D92/VLOOKUP(A92,'Factors (to hide)'!$A$73:$F$82,MATCH(C92,'Factors (to hide)'!$B$71:$F$71,0)+1),0) -> 0 | F92: =+IFERROR(E92*(VLOOKUP(C92,'Factors (to hide)'!A:B,2,FALSE)),"") -> 
E93: =+IFERROR(D93/VLOOKUP(A93,'Factors (to hide)'!$A$73:$F$82,MATCH(C93,'Factors (to hide)'!$B$71:$F$71,0)+1),0) -> 0 | F93: =+IFERROR(E93*(VLOOKUP(C93,'Factors (to hide)'!A:B,2,FALSE)),"") -> 
E94: =+IFERROR(D94/VLOOKUP(A94,'Factors (to hide)'!$A$73:$F$82,MATCH(C94,'Factors (to hide)'!$B$71:$F$71,0)+1),0) -> 0 | F94: =+IFERROR(E94*(VLOOKUP(C94,'Factors (to hide)'!A:B,2,FALSE)),"") -> 
E95: =+IFERROR(D95/VLOOKUP(A95,'Factors (to hide)'!$A$73:$F$82,MATCH(C95,'Factors (to hide)'!$B$71:$F$71,0)+1),0) -> 0 | F95: =+IFERROR(E95*(VLOOKUP(C95,'Factors (to hide)'!A:B,2,FALSE)),"") -> 
E96: =+IFERROR(D96/VLOOKUP(A96,'Factors (to hide)'!$A$73:$F$82,MATCH(C96,'Factors (to hide)'!$B$71:$F$71,0)+1),0) -> 0 | F96: =+IFERROR(E96*(VLOOKUP(C96,'Factors (to hide)'!A:B,2,FALSE)),"") -> 
E97: =+IFERROR(D97/VLOOKUP(A97,'Factors (to hide)'!$A$73:$F$82,MATCH(C97,'Factors (to hide)'!$B$71:$F$71,0)+1),0) -> 0 | F97: =+IFERROR(E97*(VLOOKUP(C97,'Factors (to hide)'!A:B,2,FALSE)),"") -> 
E98: =+IFERROR(D98/VLOOKUP(A98,'Factors (to hide)'!$A$73:$F$82,MATCH(C98,'Factors (to hide)'!$B$71:$F$71,0)+1),0) -> 0 | F98: =+IFERROR(E98*(VLOOKUP(C98,'Factors (to hide)'!A:B,2,FALSE)),"") -> 
E99: =+IFERROR(D99/VLOOKUP(A99,'Factors (to hide)'!$A$73:$F$82,MATCH(C99,'Factors (to hide)'!$B$71:$F$71,0)+1),0) -> 0 | F99: =+IFERROR(E99*(VLOOKUP(C99,'Factors (to hide)'!A:B,2,FALSE)),"") -> 
E100: =+IFERROR(D100/VLOOKUP(A100,'Factors (to hide)'!$A$73:$F$82,MATCH(C100,'Factors (to hide)'!$B$71:$F$71,0)+1),0) -> 0 | F100: =+IFERROR(E100*(VLOOKUP(C100,'Factors (to hide)'!A:B,2,FALSE)),"") -> 

Sheet 9 Commute
A1: =+'1 Data'!B8 -> The Example Company | G1: Data Complete?
A2: ="For the period from "&TEXT('1 Data'!B10,"d mmmm yyyy")&" to "&TEXT('1 Data'!B11,"d mmmm yyyy") -> For the period from 0 January 1900 to 0 January 1900 | G2: No
A3: Commuting and other regular journeys
A5: Record regular journeys of all workers at your organisation.
A6: If a worker uses more than one type of transport simply complete more than one row for that worker.
G8: Total Air Travel | J8: =+SUMIFS(J12:J31,G12:G31,"*air*") -> 0
G9: Total Non-Air Travel | J9: =+J10-J8 -> 0
A10: Total for period | F10: =SUM(F12:F31) -> 0 | J10: =SUM(J12:J31) -> 0
A11: Employee | B11: Name (optional) | C11: Commute distance (miles) | D11: Days per week | E11: Weeks in period | F11: Distance per period (miles) | G11: Transport Method | H11: If car then car name | I11: CO2 kg / km | J11: CO2 kg / period
A12: Employee 1 | F12: =+C12*D12*E12 -> 0 | I12: =IF(H12>0,IFERROR(VLOOKUP(H12,'1 Data'!$A$16:$C$35,2,FALSE)/1000,"NOT LISTED"),IFERROR(VLOOKUP(G12,'Factors (to hide)'!A:B,2,FALSE),0)) -> 0 | J12: =+F12*'Factors (to hide)'!$B$60*'9 Commute'!I12 -> 0
A13: Employee 2 | F13: =+C13*D13*E13 -> 0 | I13: =IF(H13>0,IFERROR(VLOOKUP(H13,'1 Data'!$A$16:$C$35,2,FALSE)/1000,"NOT LISTED"),IFERROR(VLOOKUP(G13,'Factors (to hide)'!A:B,2,FALSE),0)) -> 0 | J13: =+F13*'Factors (to hide)'!$B$60*'9 Commute'!I13 -> 0
A14: Employee 3 | F14: 0 | I14: =IF(H14>0,IFERROR(VLOOKUP(H14,'1 Data'!$A$16:$C$35,2,FALSE)/1000,"NOT LISTED"),IFERROR(VLOOKUP(G14,'Factors (to hide)'!A:B,2,FALSE),0)) -> 0 | J14: =+F14*'Factors (to hide)'!$B$60*'9 Commute'!I14 -> 0
A15: Employee 4 | F15: 0 | I15: =IF(H15>0,IFERROR(VLOOKUP(H15,'1 Data'!$A$16:$C$35,2,FALSE)/1000,"NOT LISTED"),IFERROR(VLOOKUP(G15,'Factors (to hide)'!A:B,2,FALSE),0)) -> 0 | J15: =+F15*'Factors (to hide)'!$B$60*'9 Commute'!I15 -> 0
A16: Employee 5 | F16: 0 | I16: =IF(H16>0,IFERROR(VLOOKUP(H16,'1 Data'!$A$16:$C$35,2,FALSE)/1000,"NOT LISTED"),IFERROR(VLOOKUP(G16,'Factors (to hide)'!A:B,2,FALSE),0)) -> 0 | J16: =+F16*'Factors (to hide)'!$B$60*'9 Commute'!I16 -> 0
A17: Employee 6 | F17: 0 | I17: =IF(H17>0,IFERROR(VLOOKUP(H17,'1 Data'!$A$16:$C$35,2,FALSE)/1000,"NOT LISTED"),IFERROR(VLOOKUP(G17,'Factors (to hide)'!A:B,2,FALSE),0)) -> 0 | J17: =+F17*'Factors (to hide)'!$B$60*'9 Commute'!I17 -> 0
A18: Employee 7 | F18: 0 | I18: =IF(H18>0,IFERROR(VLOOKUP(H18,'1 Data'!$A$16:$C$35,2,FALSE)/1000,"NOT LISTED"),IFERROR(VLOOKUP(G18,'Factors (to hide)'!A:B,2,FALSE),0)) -> 0 | J18: =+F18*'Factors (to hide)'!$B$60*'9 Commute'!I18 -> 0
A19: Employee 8 | F19: 0 | I19: =IF(H19>0,IFERROR(VLOOKUP(H19,'1 Data'!$A$16:$C$35,2,FALSE)/1000,"NOT LISTED"),IFERROR(VLOOKUP(G19,'Factors (to hide)'!A:B,2,FALSE),0)) -> 0 | J19: =+F19*'Factors (to hide)'!$B$60*'9 Commute'!I19 -> 0
A20: Employee 9 | F20: 0 | I20: =IF(H20>0,IFERROR(VLOOKUP(H20,'1 Data'!$A$16:$C$35,2,FALSE)/1000,"NOT LISTED"),IFERROR(VLOOKUP(G20,'Factors (to hide)'!A:B,2,FALSE),0)) -> 0 | J20: =+F20*'Factors (to hide)'!$B$60*'9 Commute'!I20 -> 0
A21: Employee 10 | F21: 0 | I21: =IF(H21>0,IFERROR(VLOOKUP(H21,'1 Data'!$A$16:$C$35,2,FALSE)/1000,"NOT LISTED"),IFERROR(VLOOKUP(G21,'Factors (to hide)'!A:B,2,FALSE),0)) -> 0 | J21: =+F21*'Factors (to hide)'!$B$60*'9 Commute'!I21 -> 0
A22: Employee 11 | F22: 0 | I22: =IF(H22>0,IFERROR(VLOOKUP(H22,'1 Data'!$A$16:$C$35,2,FALSE)/1000,"NOT LISTED"),IFERROR(VLOOKUP(G22,'Factors (to hide)'!A:B,2,FALSE),0)) -> 0 | J22: =+F22*'Factors (to hide)'!$B$60*'9 Commute'!I22 -> 0
A23: Employee 12 | F23: 0 | I23: =IF(H23>0,IFERROR(VLOOKUP(H23,'1 Data'!$A$16:$C$35,2,FALSE)/1000,"NOT LISTED"),IFERROR(VLOOKUP(G23,'Factors (to hide)'!A:B,2,FALSE),0)) -> 0 | J23: =+F23*'Factors (to hide)'!$B$60*'9 Commute'!I23 -> 0
A24: Employee 13 | F24: 0 | I24: =IF(H24>0,IFERROR(VLOOKUP(H24,'1 Data'!$A$16:$C$35,2,FALSE)/1000,"NOT LISTED"),IFERROR(VLOOKUP(G24,'Factors (to hide)'!A:B,2,FALSE),0)) -> 0 | J24: =+F24*'Factors (to hide)'!$B$60*'9 Commute'!I24 -> 0
A25: Employee 14 | F25: 0 | I25: =IF(H25>0,IFERROR(VLOOKUP(H25,'1 Data'!$A$16:$C$35,2,FALSE)/1000,"NOT LISTED"),IFERROR(VLOOKUP(G25,'Factors (to hide)'!A:B,2,FALSE),0)) -> 0 | J25: =+F25*'Factors (to hide)'!$B$60*'9 Commute'!I25 -> 0
A26: Employee 15 | F26: 0 | I26: =IF(H26>0,IFERROR(VLOOKUP(H26,'1 Data'!$A$16:$C$35,2,FALSE)/1000,"NOT LISTED"),IFERROR(VLOOKUP(G26,'Factors (to hide)'!A:B,2,FALSE),0)) -> 0 | J26: =+F26*'Factors (to hide)'!$B$60*'9 Commute'!I26 -> 0
A27: Employee 16 | F27: 0 | I27: =IF(H27>0,IFERROR(VLOOKUP(H27,'1 Data'!$A$16:$C$35,2,FALSE)/1000,"NOT LISTED"),IFERROR(VLOOKUP(G27,'Factors (to hide)'!A:B,2,FALSE),0)) -> 0 | J27: =+F27*'Factors (to hide)'!$B$60*'9 Commute'!I27 -> 0
A28: Employee 17 | F28: 0 | I28: =IF(H28>0,IFERROR(VLOOKUP(H28,'1 Data'!$A$16:$C$35,2,FALSE)/1000,"NOT LISTED"),IFERROR(VLOOKUP(G28,'Factors (to hide)'!A:B,2,FALSE),0)) -> 0 | J28: =+F28*'Factors (to hide)'!$B$60*'9 Commute'!I28 -> 0
A29: Employee 18 | F29: 0 | I29: =IF(H29>0,IFERROR(VLOOKUP(H29,'1 Data'!$A$16:$C$35,2,FALSE)/1000,"NOT LISTED"),IFERROR(VLOOKUP(G29,'Factors (to hide)'!A:B,2,FALSE),0)) -> 0 | J29: =+F29*'Factors (to hide)'!$B$60*'9 Commute'!I29 -> 0
A30: Employee 19 | F30: 0 | I30: =IF(H30>0,IFERROR(VLOOKUP(H30,'1 Data'!$A$16:$C$35,2,FALSE)/1000,"NOT LISTED"),IFERROR(VLOOKUP(G30,'Factors (to hide)'!A:B,2,FALSE),0)) -> 0 | J30: =+F30*'Factors (to hide)'!$B$60*'9 Commute'!I30 -> 0
A31: Employee 20 | F31: 0 | I31: =IF(H31>0,IFERROR(VLOOKUP(H31,'1 Data'!$A$16:$C$35,2,FALSE)/1000,"NOT LISTED"),IFERROR(VLOOKUP(G31,'Factors (to hide)'!A:B,2,FALSE),0)) -> 0 | J31: =+F31*'Factors (to hide)'!$B$60*'9 Commute'!I31 -> 0

Sheet 10 Water bills
A1: =+'1 Data'!B8 -> The Example Company | G1: Data Complete?
A2: ="For the period from "&TEXT('1 Data'!B10,"d mmmm yyyy")&" to "&TEXT('1 Data'!B11,"d mmmm yyyy") -> For the period from 0 January 1900 to 0 January 1900 | G2: No
A3: Water bills
A5: Record here all water bills relating to the period. Include date and reading at start of first bill
A6: If no bills then leave blank and complete "water Est" tab instead.
A7: If you have water bills and other water use, such as water heating in a shared space, then complete both tabs.
A8: Total for period | D8: =SUM(D11:D25) -> 0 | F8: =SUM(F11:F25) -> 0 | G8: =SUM(G11:G25) -> 0
A9: Date | B9: Meter reading m3 | C9: Water units on bill | D9: Water relating to this period | E9: Percentage business | F9: Business use in period kWh | G9: CO2e Kg
H10: < date and reading at start of first bill
C11: =IF(B11>0,+B11-B10,0) -> 0 | D11: =IF($A10>0,MAX(+$A11-$A10-MAX('1 Data'!$B$10-1-$A10,0)-MAX($A11-'1 Data'!$B$11,0),0)*$C11/($A11-$A10),0) -> 0 | E11: 1 | F11: =+D11*E11 -> 0 | G11: =F11*VLOOKUP("Water",'Factors (to hide)'!A:B,2,FALSE) -> 0 | H11: < date and reading at end of first bil
C12: 0 | D12: =IF($A11>0,MAX(+$A12-$A11-MAX('1 Data'!$B$10-1-$A11,0)-MAX($A12-'1 Data'!$B$11,0),0)*$C12/($A12-$A11),0) -> 0 | E12: 1 | F12: =+D12*E12 -> 0 | G12: =F12*VLOOKUP("Water",'Factors (to hide)'!A:B,2,FALSE) -> 0 | H12: < date and reading at end of second bill
C13: 0 | D13: =IF($A12>0,MAX(+$A13-$A12-MAX('1 Data'!$B$10-1-$A12,0)-MAX($A13-'1 Data'!$B$11,0),0)*$C13/($A13-$A12),0) -> 0 | E13: 1 | F13: 0 | G13: =F13*VLOOKUP("Water",'Factors (to hide)'!A:B,2,FALSE) -> 0 | H13: < date and reading at end of third bill
C14: 0 | D14: =IF($A13>0,MAX(+$A14-$A13-MAX('1 Data'!$B$10-1-$A13,0)-MAX($A14-'1 Data'!$B$11,0),0)*$C14/($A14-$A13),0) -> 0 | E14: 1 | F14: 0 | G14: =F14*VLOOKUP("Water",'Factors (to hide)'!A:B,2,FALSE) -> 0 | H14: etc.
C15: 0 | D15: =IF($A14>0,MAX(+$A15-$A14-MAX('1 Data'!$B$10-1-$A14,0)-MAX($A15-'1 Data'!$B$11,0),0)*$C15/($A15-$A14),0) -> 0 | E15: 1 | F15: 0 | G15: =F15*VLOOKUP("Water",'Factors (to hide)'!A:B,2,FALSE) -> 0
C16: 0 | D16: =IF($A15>0,MAX(+$A16-$A15-MAX('1 Data'!$B$10-1-$A15,0)-MAX($A16-'1 Data'!$B$11,0),0)*$C16/($A16-$A15),0) -> 0 | E16: 1 | F16: 0 | G16: =F16*VLOOKUP("Water",'Factors (to hide)'!A:B,2,FALSE) -> 0
C17: 0 | D17: =IF($A16>0,MAX(+$A17-$A16-MAX('1 Data'!$B$10-1-$A16,0)-MAX($A17-'1 Data'!$B$11,0),0)*$C17/($A17-$A16),0) -> 0 | E17: 1 | F17: 0 | G17: =F17*VLOOKUP("Water",'Factors (to hide)'!A:B,2,FALSE) -> 0
C18: 0 | D18: =IF($A17>0,MAX(+$A18-$A17-MAX('1 Data'!$B$10-1-$A17,0)-MAX($A18-'1 Data'!$B$11,0),0)*$C18/($A18-$A17),0) -> 0 | E18: 1 | F18: 0 | G18: =F18*VLOOKUP("Water",'Factors (to hide)'!A:B,2,FALSE) -> 0
C19: 0 | D19: =IF($A18>0,MAX(+$A19-$A18-MAX('1 Data'!$B$10-1-$A18,0)-MAX($A19-'1 Data'!$B$11,0),0)*$C19/($A19-$A18),0) -> 0 | E19: 1 | F19: 0 | G19: =F19*VLOOKUP("Water",'Factors (to hide)'!A:B,2,FALSE) -> 0
C20: 0 | D20: =IF($A19>0,MAX(+$A20-$A19-MAX('1 Data'!$B$10-1-$A19,0)-MAX($A20-'1 Data'!$B$11,0),0)*$C20/($A20-$A19),0) -> 0 | E20: 1 | F20: 0 | G20: =F20*VLOOKUP("Water",'Factors (to hide)'!A:B,2,FALSE) -> 0
C21: 0 | D21: =IF($A20>0,MAX(+$A21-$A20-MAX('1 Data'!$B$10-1-$A20,0)-MAX($A21-'1 Data'!$B$11,0),0)*$C21/($A21-$A20),0) -> 0 | E21: 1 | F21: 0 | G21: =F21*VLOOKUP("Water",'Factors (to hide)'!A:B,2,FALSE) -> 0
C22: 0 | D22: =IF($A21>0,MAX(+$A22-$A21-MAX('1 Data'!$B$10-1-$A21,0)-MAX($A22-'1 Data'!$B$11,0),0)*$C22/($A22-$A21),0) -> 0 | E22: 1 | F22: 0 | G22: =F22*VLOOKUP("Water",'Factors (to hide)'!A:B,2,FALSE) -> 0
C23: 0 | D23: =IF($A22>0,MAX(+$A23-$A22-MAX('1 Data'!$B$10-1-$A22,0)-MAX($A23-'1 Data'!$B$11,0),0)*$C23/($A23-$A22),0) -> 0 | E23: 1 | F23: 0 | G23: =F23*VLOOKUP("Water",'Factors (to hide)'!A:B,2,FALSE) -> 0
C24: 0 | D24: =IF($A23>0,MAX(+$A24-$A23-MAX('1 Data'!$B$10-1-$A23,0)-MAX($A24-'1 Data'!$B$11,0),0)*$C24/($A24-$A23),0) -> 0 | E24: 1 | F24: 0 | G24: =F24*VLOOKUP("Water",'Factors (to hide)'!A:B,2,FALSE) -> 0
C25: 0 | D25: =IF($A24>0,MAX(+$A25-$A24-MAX('1 Data'!$B$10-1-$A24,0)-MAX($A25-'1 Data'!$B$11,0),0)*$C25/($A25-$A24),0) -> 0 | E25: 1 | F25: 0 | G25: =F25*VLOOKUP("Water",'Factors (to hide)'!A:B,2,FALSE) -> 0

Sheet 11 Water Est
A1: =+'1 Data'!B8 -> The Example Company | G1: Data Complete?
A2: ="For the period from "&TEXT('1 Data'!B10,"d mmmm yyyy")&" to "&TEXT('1 Data'!B11,"d mmmm yyyy") -> For the period from 0 January 1900 to 0 January 1900 | G2: No
A3: Water use - Estimations
A8: CO2e for period | B8: =+B13*VLOOKUP("water",'Factors (to hide)'!$A:$B,2,FALSE)/1000 -> 0.03757142857
A9: Average number of workers | B9: 1
A10: Average days per person per week | B10: 5
A11: Water use factor | B11: average
A12: Other factors | B12: 1
A13: Calculated litres for period | B13: ='Factors (to hide)'!$B69*B9*B10*('1 Data'!B11+1-'1 Data'!B10)/7*VLOOKUP(B11,$A$17:$B$21,2,FALSE)*B12 -> 35.71428571
A16: Water usage factors:
A17: wasteful | B17: 1.5
A18: poor | B18: 1.25
A19: average | B19: 1
A20: little | B20: 0.75
A21: desert like | B21: 0.5

Sheet 12 Paper
A1: =+'1 Data'!B8 -> The Example Company | C1: Note: 1 ream of paper = 500 sheets = approx 2.5kg | G1: Data Complete?
A2: ="For the period from "&TEXT('1 Data'!B10,"d mmmm yyyy")&" to "&TEXT('1 Data'!B11,"d mmmm yyyy") -> For the period from 0 January 1900 to 0 January 1900 | G2: No
A3: Paper purchases (equivalent of paper use)
A8: Total for period | D8: =SUM(D10:D100) -> 0 | E8: =SUM(E10:E100) -> 0
A9: Date | B9: Description | C9: % recycled | D9: Weight kg | E9: CO2e kg
E10: =IF(AND(A10>='1 Data'!$B$10,A10<='1 Data'!$B$11),(VLOOKUP("paper",'Factors (to hide)'!A:B,2,FALSE)/(2.5)*D10*(1-C10)+VLOOKUP("recycled paper",'Factors (to hide)'!A:B,2,FALSE)/(2.5)*D10*(C10)),"") -> 0
E11: =IF(AND(A11>='1 Data'!$B$10,A11<='1 Data'!$B$11),(VLOOKUP("paper",'Factors (to hide)'!A:B,2,FALSE)/(2.5)*D11*(1-C11)+VLOOKUP("recycled paper",'Factors (to hide)'!A:B,2,FALSE)/(2.5)*D11*(C11)),"") -> 0
E12: =IF(AND(A12>='1 Data'!$B$10,A12<='1 Data'!$B$11),(VLOOKUP("paper",'Factors (to hide)'!A:B,2,FALSE)/(2.5)*D12*(1-C12)+VLOOKUP("recycled paper",'Factors (to hide)'!A:B,2,FALSE)/(2.5)*D12*(C12)),"") -> 0
E13: =IF(AND(A13>='1 Data'!$B$10,A13<='1 Data'!$B$11),(VLOOKUP("paper",'Factors (to hide)'!A:B,2,FALSE)/(2.5)*D13*(1-C13)+VLOOKUP("recycled paper",'Factors (to hide)'!A:B,2,FALSE)/(2.5)*D13*(C13)),"") -> 0
E14: =IF(AND(A14>='1 Data'!$B$10,A14<='1 Data'!$B$11),(VLOOKUP("paper",'Factors (to hide)'!A:B,2,FALSE)/(2.5)*D14*(1-C14)+VLOOKUP("recycled paper",'Factors (to hide)'!A:B,2,FALSE)/(2.5)*D14*(C14)),"") -> 0
E15: =IF(AND(A15>='1 Data'!$B$10,A15<='1 Data'!$B$11),(VLOOKUP("paper",'Factors (to hide)'!A:B,2,FALSE)/(2.5)*D15*(1-C15)+VLOOKUP("recycled paper",'Factors (to hide)'!A:B,2,FALSE)/(2.5)*D15*(C15)),"") -> 0
E16: =IF(AND(A16>='1 Data'!$B$10,A16<='1 Data'!$B$11),(VLOOKUP("paper",'Factors (to hide)'!A:B,2,FALSE)/(2.5)*D16*(1-C16)+VLOOKUP("recycled paper",'Factors (to hide)'!A:B,2,FALSE)/(2.5)*D16*(C16)),"") -> 0
E17: =IF(AND(A17>='1 Data'!$B$10,A17<='1 Data'!$B$11),(VLOOKUP("paper",'Factors (to hide)'!A:B,2,FALSE)/(2.5)*D17*(1-C17)+VLOOKUP("recycled paper",'Factors (to hide)'!A:B,2,FALSE)/(2.5)*D17*(C17)),"") -> 0
E18: =IF(AND(A18>='1 Data'!$B$10,A18<='1 Data'!$B$11),(VLOOKUP("paper",'Factors (to hide)'!A:B,2,FALSE)/(2.5)*D18*(1-C18)+VLOOKUP("recycled paper",'Factors (to hide)'!A:B,2,FALSE)/(2.5)*D18*(C18)),"") -> 0
E19: =IF(AND(A19>='1 Data'!$B$10,A19<='1 Data'!$B$11),(VLOOKUP("paper",'Factors (to hide)'!A:B,2,FALSE)/(2.5)*D19*(1-C19)+VLOOKUP("recycled paper",'Factors (to hide)'!A:B,2,FALSE)/(2.5)*D19*(C19)),"") -> 0
E20: =IF(AND(A20>='1 Data'!$B$10,A20<='1 Data'!$B$11),(VLOOKUP("paper",'Factors (to hide)'!A:B,2,FALSE)/(2.5)*D20*(1-C20)+VLOOKUP("recycled paper",'Factors (to hide)'!A:B,2,FALSE)/(2.5)*D20*(C20)),"") -> 0
E21: =IF(AND(A21>='1 Data'!$B$10,A21<='1 Data'!$B$11),(VLOOKUP("paper",'Factors (to hide)'!A:B,2,FALSE)/(2.5)*D21*(1-C21)+VLOOKUP("recycled paper",'Factors (to hide)'!A:B,2,FALSE)/(2.5)*D21*(C21)),"") -> 0
E22: =IF(AND(A22>='1 Data'!$B$10,A22<='1 Data'!$B$11),(VLOOKUP("paper",'Factors (to hide)'!A:B,2,FALSE)/(2.5)*D22*(1-C22)+VLOOKUP("recycled paper",'Factors (to hide)'!A:B,2,FALSE)/(2.5)*D22*(C22)),"") -> 0
E23: =IF(AND(A23>='1 Data'!$B$10,A23<='1 Data'!$B$11),(VLOOKUP("paper",'Factors (to hide)'!A:B,2,FALSE)/(2.5)*D23*(1-C23)+VLOOKUP("recycled paper",'Factors (to hide)'!A:B,2,FALSE)/(2.5)*D23*(C23)),"") -> 0
E24: =IF(AND(A24>='1 Data'!$B$10,A24<='1 Data'!$B$11),(VLOOKUP("paper",'Factors (to hide)'!A:B,2,FALSE)/(2.5)*D24*(1-C24)+VLOOKUP("recycled paper",'Factors (to hide)'!A:B,2,FALSE)/(2.5)*D24*(C24)),"") -> 0
E25: =IF(AND(A25>='1 Data'!$B$10,A25<='1 Data'!$B$11),(VLOOKUP("paper",'Factors (to hide)'!A:B,2,FALSE)/(2.5)*D25*(1-C25)+VLOOKUP("recycled paper",'Factors (to hide)'!A:B,2,FALSE)/(2.5)*D25*(C25)),"") -> 0
E26: =IF(AND(A26>='1 Data'!$B$10,A26<='1 Data'!$B$11),(VLOOKUP("paper",'Factors (to hide)'!A:B,2,FALSE)/(2.5)*D26*(1-C26)+VLOOKUP("recycled paper",'Factors (to hide)'!A:B,2,FALSE)/(2.5)*D26*(C26)),"") -> 0
E27: =IF(AND(A27>='1 Data'!$B$10,A27<='1 Data'!$B$11),(VLOOKUP("paper",'Factors (to hide)'!A:B,2,FALSE)/(2.5)*D27*(1-C27)+VLOOKUP("recycled paper",'Factors (to hide)'!A:B,2,FALSE)/(2.5)*D27*(C27)),"") -> 0
E28: =IF(AND(A28>='1 Data'!$B$10,A28<='1 Data'!$B$11),(VLOOKUP("paper",'Factors (to hide)'!A:B,2,FALSE)/(2.5)*D28*(1-C28)+VLOOKUP("recycled paper",'Factors (to hide)'!A:B,2,FALSE)/(2.5)*D28*(C28)),"") -> 0
E29: =IF(AND(A29>='1 Data'!$B$10,A29<='1 Data'!$B$11),(VLOOKUP("paper",'Factors (to hide)'!A:B,2,FALSE)/(2.5)*D29*(1-C29)+VLOOKUP("recycled paper",'Factors (to hide)'!A:B,2,FALSE)/(2.5)*D29*(C29)),"") -> 0
E30: =IF(AND(A30>='1 Data'!$B$10,A30<='1 Data'!$B$11),(VLOOKUP("paper",'Factors (to hide)'!A:B,2,FALSE)/(2.5)*D30*(1-C30)+VLOOKUP("recycled paper",'Factors (to hide)'!A:B,2,FALSE)/(2.5)*D30*(C30)),"") -> 0
E31: =IF(AND(A31>='1 Data'!$B$10,A31<='1 Data'!$B$11),(VLOOKUP("paper",'Factors (to hide)'!A:B,2,FALSE)/(2.5)*D31*(1-C31)+VLOOKUP("recycled paper",'Factors (to hide)'!A:B,2,FALSE)/(2.5)*D31*(C31)),"") -> 0
E32: =IF(AND(A32>='1 Data'!$B$10,A32<='1 Data'!$B$11),(VLOOKUP("paper",'Factors (to hide)'!A:B,2,FALSE)/(2.5)*D32*(1-C32)+VLOOKUP("recycled paper",'Factors (to hide)'!A:B,2,FALSE)/(2.5)*D32*(C32)),"") -> 0
E33: =IF(AND(A33>='1 Data'!$B$10,A33<='1 Data'!$B$11),(VLOOKUP("paper",'Factors (to hide)'!A:B,2,FALSE)/(2.5)*D33*(1-C33)+VLOOKUP("recycled paper",'Factors (to hide)'!A:B,2,FALSE)/(2.5)*D33*(C33)),"") -> 0
E34: =IF(AND(A34>='1 Data'!$B$10,A34<='1 Data'!$B$11),(VLOOKUP("paper",'Factors (to hide)'!A:B,2,FALSE)/(2.5)*D34*(1-C34)+VLOOKUP("recycled paper",'Factors (to hide)'!A:B,2,FALSE)/(2.5)*D34*(C34)),"") -> 0
E35: =IF(AND(A35>='1 Data'!$B$10,A35<='1 Data'!$B$11),(VLOOKUP("paper",'Factors (to hide)'!A:B,2,FALSE)/(2.5)*D35*(1-C35)+VLOOKUP("recycled paper",'Factors (to hide)'!A:B,2,FALSE)/(2.5)*D35*(C35)),"") -> 0
E36: =IF(AND(A36>='1 Data'!$B$10,A36<='1 Data'!$B$11),(VLOOKUP("paper",'Factors (to hide)'!A:B,2,FALSE)/(2.5)*D36*(1-C36)+VLOOKUP("recycled paper",'Factors (to hide)'!A:B,2,FALSE)/(2.5)*D36*(C36)),"") -> 0
E37: =IF(AND(A37>='1 Data'!$B$10,A37<='1 Data'!$B$11),(VLOOKUP("paper",'Factors (to hide)'!A:B,2,FALSE)/(2.5)*D37*(1-C37)+VLOOKUP("recycled paper",'Factors (to hide)'!A:B,2,FALSE)/(2.5)*D37*(C37)),"") -> 0
E38: =IF(AND(A38>='1 Data'!$B$10,A38<='1 Data'!$B$11),(VLOOKUP("paper",'Factors (to hide)'!A:B,2,FALSE)/(2.5)*D38*(1-C38)+VLOOKUP("recycled paper",'Factors (to hide)'!A:B,2,FALSE)/(2.5)*D38*(C38)),"") -> 0
E39: =IF(AND(A39>='1 Data'!$B$10,A39<='1 Data'!$B$11),(VLOOKUP("paper",'Factors (to hide)'!A:B,2,FALSE)/(2.5)*D39*(1-C39)+VLOOKUP("recycled paper",'Factors (to hide)'!A:B,2,FALSE)/(2.5)*D39*(C39)),"") -> 0
E40: =IF(AND(A40>='1 Data'!$B$10,A40<='1 Data'!$B$11),(VLOOKUP("paper",'Factors (to hide)'!A:B,2,FALSE)/(2.5)*D40*(1-C40)+VLOOKUP("recycled paper",'Factors (to hide)'!A:B,2,FALSE)/(2.5)*D40*(C40)),"") -> 0
E41: =IF(AND(A41>='1 Data'!$B$10,A41<='1 Data'!$B$11),(VLOOKUP("paper",'Factors (to hide)'!A:B,2,FALSE)/(2.5)*D41*(1-C41)+VLOOKUP("recycled paper",'Factors (to hide)'!A:B,2,FALSE)/(2.5)*D41*(C41)),"") -> 0
E42: =IF(AND(A42>='1 Data'!$B$10,A42<='1 Data'!$B$11),(VLOOKUP("paper",'Factors (to hide)'!A:B,2,FALSE)/(2.5)*D42*(1-C42)+VLOOKUP("recycled paper",'Factors (to hide)'!A:B,2,FALSE)/(2.5)*D42*(C42)),"") -> 0
E43: =IF(AND(A43>='1 Data'!$B$10,A43<='1 Data'!$B$11),(VLOOKUP("paper",'Factors (to hide)'!A:B,2,FALSE)/(2.5)*D43*(1-C43)+VLOOKUP("recycled paper",'Factors (to hide)'!A:B,2,FALSE)/(2.5)*D43*(C43)),"") -> 0
E44: =IF(AND(A44>='1 Data'!$B$10,A44<='1 Data'!$B$11),(VLOOKUP("paper",'Factors (to hide)'!A:B,2,FALSE)/(2.5)*D44*(1-C44)+VLOOKUP("recycled paper",'Factors (to hide)'!A:B,2,FALSE)/(2.5)*D44*(C44)),"") -> 0
E45: =IF(AND(A45>='1 Data'!$B$10,A45<='1 Data'!$B$11),(VLOOKUP("paper",'Factors (to hide)'!A:B,2,FALSE)/(2.5)*D45*(1-C45)+VLOOKUP("recycled paper",'Factors (to hide)'!A:B,2,FALSE)/(2.5)*D45*(C45)),"") -> 0
E46: =IF(AND(A46>='1 Data'!$B$10,A46<='1 Data'!$B$11),(VLOOKUP("paper",'Factors (to hide)'!A:B,2,FALSE)/(2.5)*D46*(1-C46)+VLOOKUP("recycled paper",'Factors (to hide)'!A:B,2,FALSE)/(2.5)*D46*(C46)),"") -> 0
E47: =IF(AND(A47>='1 Data'!$B$10,A47<='1 Data'!$B$11),(VLOOKUP("paper",'Factors (to hide)'!A:B,2,FALSE)/(2.5)*D47*(1-C47)+VLOOKUP("recycled paper",'Factors (to hide)'!A:B,2,FALSE)/(2.5)*D47*(C47)),"") -> 0
E48: =IF(AND(A48>='1 Data'!$B$10,A48<='1 Data'!$B$11),(VLOOKUP("paper",'Factors (to hide)'!A:B,2,FALSE)/(2.5)*D48*(1-C48)+VLOOKUP("recycled paper",'Factors (to hide)'!A:B,2,FALSE)/(2.5)*D48*(C48)),"") -> 0
E49: =IF(AND(A49>='1 Data'!$B$10,A49<='1 Data'!$B$11),(VLOOKUP("paper",'Factors (to hide)'!A:B,2,FALSE)/(2.5)*D49*(1-C49)+VLOOKUP("recycled paper",'Factors (to hide)'!A:B,2,FALSE)/(2.5)*D49*(C49)),"") -> 0
E50: =IF(AND(A50>='1 Data'!$B$10,A50<='1 Data'!$B$11),(VLOOKUP("paper",'Factors (to hide)'!A:B,2,FALSE)/(2.5)*D50*(1-C50)+VLOOKUP("recycled paper",'Factors (to hide)'!A:B,2,FALSE)/(2.5)*D50*(C50)),"") -> 0
E51: =IF(AND(A51>='1 Data'!$B$10,A51<='1 Data'!$B$11),(VLOOKUP("paper",'Factors (to hide)'!A:B,2,FALSE)/(2.5)*D51*(1-C51)+VLOOKUP("recycled paper",'Factors (to hide)'!A:B,2,FALSE)/(2.5)*D51*(C51)),"") -> 0
E52: =IF(AND(A52>='1 Data'!$B$10,A52<='1 Data'!$B$11),(VLOOKUP("paper",'Factors (to hide)'!A:B,2,FALSE)/(2.5)*D52*(1-C52)+VLOOKUP("recycled paper",'Factors (to hide)'!A:B,2,FALSE)/(2.5)*D52*(C52)),"") -> 0
E53: =IF(AND(A53>='1 Data'!$B$10,A53<='1 Data'!$B$11),(VLOOKUP("paper",'Factors (to hide)'!A:B,2,FALSE)/(2.5)*D53*(1-C53)+VLOOKUP("recycled paper",'Factors (to hide)'!A:B,2,FALSE)/(2.5)*D53*(C53)),"") -> 0
E54: =IF(AND(A54>='1 Data'!$B$10,A54<='1 Data'!$B$11),(VLOOKUP("paper",'Factors (to hide)'!A:B,2,FALSE)/(2.5)*D54*(1-C54)+VLOOKUP("recycled paper",'Factors (to hide)'!A:B,2,FALSE)/(2.5)*D54*(C54)),"") -> 0
E55: =IF(AND(A55>='1 Data'!$B$10,A55<='1 Data'!$B$11),(VLOOKUP("paper",'Factors (to hide)'!A:B,2,FALSE)/(2.5)*D55*(1-C55)+VLOOKUP("recycled paper",'Factors (to hide)'!A:B,2,FALSE)/(2.5)*D55*(C55)),"") -> 0
E56: =IF(AND(A56>='1 Data'!$B$10,A56<='1 Data'!$B$11),(VLOOKUP("paper",'Factors (to hide)'!A:B,2,FALSE)/(2.5)*D56*(1-C56)+VLOOKUP("recycled paper",'Factors (to hide)'!A:B,2,FALSE)/(2.5)*D56*(C56)),"") -> 0
E57: =IF(AND(A57>='1 Data'!$B$10,A57<='1 Data'!$B$11),(VLOOKUP("paper",'Factors (to hide)'!A:B,2,FALSE)/(2.5)*D57*(1-C57)+VLOOKUP("recycled paper",'Factors (to hide)'!A:B,2,FALSE)/(2.5)*D57*(C57)),"") -> 0
E58: =IF(AND(A58>='1 Data'!$B$10,A58<='1 Data'!$B$11),(VLOOKUP("paper",'Factors (to hide)'!A:B,2,FALSE)/(2.5)*D58*(1-C58)+VLOOKUP("recycled paper",'Factors (to hide)'!A:B,2,FALSE)/(2.5)*D58*(C58)),"") -> 0
E59: =IF(AND(A59>='1 Data'!$B$10,A59<='1 Data'!$B$11),(VLOOKUP("paper",'Factors (to hide)'!A:B,2,FALSE)/(2.5)*D59*(1-C59)+VLOOKUP("recycled paper",'Factors (to hide)'!A:B,2,FALSE)/(2.5)*D59*(C59)),"") -> 0
E60: =IF(AND(A60>='1 Data'!$B$10,A60<='1 Data'!$B$11),(VLOOKUP("paper",'Factors (to hide)'!A:B,2,FALSE)/(2.5)*D60*(1-C60)+VLOOKUP("recycled paper",'Factors (to hide)'!A:B,2,FALSE)/(2.5)*D60*(C60)),"") -> 0
E61: =IF(AND(A61>='1 Data'!$B$10,A61<='1 Data'!$B$11),(VLOOKUP("paper",'Factors (to hide)'!A:B,2,FALSE)/(2.5)*D61*(1-C61)+VLOOKUP("recycled paper",'Factors (to hide)'!A:B,2,FALSE)/(2.5)*D61*(C61)),"") -> 0
E62: =IF(AND(A62>='1 Data'!$B$10,A62<='1 Data'!$B$11),(VLOOKUP("paper",'Factors (to hide)'!A:B,2,FALSE)/(2.5)*D62*(1-C62)+VLOOKUP("recycled paper",'Factors (to hide)'!A:B,2,FALSE)/(2.5)*D62*(C62)),"") -> 0
E63: =IF(AND(A63>='1 Data'!$B$10,A63<='1 Data'!$B$11),(VLOOKUP("paper",'Factors (to hide)'!A:B,2,FALSE)/(2.5)*D63*(1-C63)+VLOOKUP("recycled paper",'Factors (to hide)'!A:B,2,FALSE)/(2.5)*D63*(C63)),"") -> 0
E64: =IF(AND(A64>='1 Data'!$B$10,A64<='1 Data'!$B$11),(VLOOKUP("paper",'Factors (to hide)'!A:B,2,FALSE)/(2.5)*D64*(1-C64)+VLOOKUP("recycled paper",'Factors (to hide)'!A:B,2,FALSE)/(2.5)*D64*(C64)),"") -> 0
E65: =IF(AND(A65>='1 Data'!$B$10,A65<='1 Data'!$B$11),(VLOOKUP("paper",'Factors (to hide)'!A:B,2,FALSE)/(2.5)*D65*(1-C65)+VLOOKUP("recycled paper",'Factors (to hide)'!A:B,2,FALSE)/(2.5)*D65*(C65)),"") -> 0
E66: =IF(AND(A66>='1 Data'!$B$10,A66<='1 Data'!$B$11),(VLOOKUP("paper",'Factors (to hide)'!A:B,2,FALSE)/(2.5)*D66*(1-C66)+VLOOKUP("recycled paper",'Factors (to hide)'!A:B,2,FALSE)/(2.5)*D66*(C66)),"") -> 0
E67: =IF(AND(A67>='1 Data'!$B$10,A67<='1 Data'!$B$11),(VLOOKUP("paper",'Factors (to hide)'!A:B,2,FALSE)/(2.5)*D67*(1-C67)+VLOOKUP("recycled paper",'Factors (to hide)'!A:B,2,FALSE)/(2.5)*D67*(C67)),"") -> 0
E68: =IF(AND(A68>='1 Data'!$B$10,A68<='1 Data'!$B$11),(VLOOKUP("paper",'Factors (to hide)'!A:B,2,FALSE)/(2.5)*D68*(1-C68)+VLOOKUP("recycled paper",'Factors (to hide)'!A:B,2,FALSE)/(2.5)*D68*(C68)),"") -> 0
E69: =IF(AND(A69>='1 Data'!$B$10,A69<='1 Data'!$B$11),(VLOOKUP("paper",'Factors (to hide)'!A:B,2,FALSE)/(2.5)*D69*(1-C69)+VLOOKUP("recycled paper",'Factors (to hide)'!A:B,2,FALSE)/(2.5)*D69*(C69)),"") -> 0
E70: =IF(AND(A70>='1 Data'!$B$10,A70<='1 Data'!$B$11),(VLOOKUP("paper",'Factors (to hide)'!A:B,2,FALSE)/(2.5)*D70*(1-C70)+VLOOKUP("recycled paper",'Factors (to hide)'!A:B,2,FALSE)/(2.5)*D70*(C70)),"") -> 0
E71: =IF(AND(A71>='1 Data'!$B$10,A71<='1 Data'!$B$11),(VLOOKUP("paper",'Factors (to hide)'!A:B,2,FALSE)/(2.5)*D71*(1-C71)+VLOOKUP("recycled paper",'Factors (to hide)'!A:B,2,FALSE)/(2.5)*D71*(C71)),"") -> 0
E72: =IF(AND(A72>='1 Data'!$B$10,A72<='1 Data'!$B$11),(VLOOKUP("paper",'Factors (to hide)'!A:B,2,FALSE)/(2.5)*D72*(1-C72)+VLOOKUP("recycled paper",'Factors (to hide)'!A:B,2,FALSE)/(2.5)*D72*(C72)),"") -> 0
E73: =IF(AND(A73>='1 Data'!$B$10,A73<='1 Data'!$B$11),(VLOOKUP("paper",'Factors (to hide)'!A:B,2,FALSE)/(2.5)*D73*(1-C73)+VLOOKUP("recycled paper",'Factors (to hide)'!A:B,2,FALSE)/(2.5)*D73*(C73)),"") -> 0
E74: =IF(AND(A74>='1 Data'!$B$10,A74<='1 Data'!$B$11),(VLOOKUP("paper",'Factors (to hide)'!A:B,2,FALSE)/(2.5)*D74*(1-C74)+VLOOKUP("recycled paper",'Factors (to hide)'!A:B,2,FALSE)/(2.5)*D74*(C74)),"") -> 0
E75: =IF(AND(A75>='1 Data'!$B$10,A75<='1 Data'!$B$11),(VLOOKUP("paper",'Factors (to hide)'!A:B,2,FALSE)/(2.5)*D75*(1-C75)+VLOOKUP("recycled paper",'Factors (to hide)'!A:B,2,FALSE)/(2.5)*D75*(C75)),"") -> 0
E76: =IF(AND(A76>='1 Data'!$B$10,A76<='1 Data'!$B$11),(VLOOKUP("paper",'Factors (to hide)'!A:B,2,FALSE)/(2.5)*D76*(1-C76)+VLOOKUP("recycled paper",'Factors (to hide)'!A:B,2,FALSE)/(2.5)*D76*(C76)),"") -> 0
E77: =IF(AND(A77>='1 Data'!$B$10,A77<='1 Data'!$B$11),(VLOOKUP("paper",'Factors (to hide)'!A:B,2,FALSE)/(2.5)*D77*(1-C77)+VLOOKUP("recycled paper",'Factors (to hide)'!A:B,2,FALSE)/(2.5)*D77*(C77)),"") -> 0
E78: =IF(AND(A78>='1 Data'!$B$10,A78<='1 Data'!$B$11),(VLOOKUP("paper",'Factors (to hide)'!A:B,2,FALSE)/(2.5)*D78*(1-C78)+VLOOKUP("recycled paper",'Factors (to hide)'!A:B,2,FALSE)/(2.5)*D78*(C78)),"") -> 0
E79: =IF(AND(A79>='1 Data'!$B$10,A79<='1 Data'!$B$11),(VLOOKUP("paper",'Factors (to hide)'!A:B,2,FALSE)/(2.5)*D79*(1-C79)+VLOOKUP("recycled paper",'Factors (to hide)'!A:B,2,FALSE)/(2.5)*D79*(C79)),"") -> 0
E80: =IF(AND(A80>='1 Data'!$B$10,A80<='1 Data'!$B$11),(VLOOKUP("paper",'Factors (to hide)'!A:B,2,FALSE)/(2.5)*D80*(1-C80)+VLOOKUP("recycled paper",'Factors (to hide)'!A:B,2,FALSE)/(2.5)*D80*(C80)),"") -> 0
E81: =IF(AND(A81>='1 Data'!$B$10,A81<='1 Data'!$B$11),(VLOOKUP("paper",'Factors (to hide)'!A:B,2,FALSE)/(2.5)*D81*(1-C81)+VLOOKUP("recycled paper",'Factors (to hide)'!A:B,2,FALSE)/(2.5)*D81*(C81)),"") -> 0
E82: =IF(AND(A82>='1 Data'!$B$10,A82<='1 Data'!$B$11),(VLOOKUP("paper",'Factors (to hide)'!A:B,2,FALSE)/(2.5)*D82*(1-C82)+VLOOKUP("recycled paper",'Factors (to hide)'!A:B,2,FALSE)/(2.5)*D82*(C82)),"") -> 0
E83: =IF(AND(A83>='1 Data'!$B$10,A83<='1 Data'!$B$11),(VLOOKUP("paper",'Factors (to hide)'!A:B,2,FALSE)/(2.5)*D83*(1-C83)+VLOOKUP("recycled paper",'Factors (to hide)'!A:B,2,FALSE)/(2.5)*D83*(C83)),"") -> 0
E84: =IF(AND(A84>='1 Data'!$B$10,A84<='1 Data'!$B$11),(VLOOKUP("paper",'Factors (to hide)'!A:B,2,FALSE)/(2.5)*D84*(1-C84)+VLOOKUP("recycled paper",'Factors (to hide)'!A:B,2,FALSE)/(2.5)*D84*(C84)),"") -> 0
E85: =IF(AND(A85>='1 Data'!$B$10,A85<='1 Data'!$B$11),(VLOOKUP("paper",'Factors (to hide)'!A:B,2,FALSE)/(2.5)*D85*(1-C85)+VLOOKUP("recycled paper",'Factors (to hide)'!A:B,2,FALSE)/(2.5)*D85*(C85)),"") -> 0
E86: =IF(AND(A86>='1 Data'!$B$10,A86<='1 Data'!$B$11),(VLOOKUP("paper",'Factors (to hide)'!A:B,2,FALSE)/(2.5)*D86*(1-C86)+VLOOKUP("recycled paper",'Factors (to hide)'!A:B,2,FALSE)/(2.5)*D86*(C86)),"") -> 0
E87: =IF(AND(A87>='1 Data'!$B$10,A87<='1 Data'!$B$11),(VLOOKUP("paper",'Factors (to hide)'!A:B,2,FALSE)/(2.5)*D87*(1-C87)+VLOOKUP("recycled paper",'Factors (to hide)'!A:B,2,FALSE)/(2.5)*D87*(C87)),"") -> 0
E88: =IF(AND(A88>='1 Data'!$B$10,A88<='1 Data'!$B$11),(VLOOKUP("paper",'Factors (to hide)'!A:B,2,FALSE)/(2.5)*D88*(1-C88)+VLOOKUP("recycled paper",'Factors (to hide)'!A:B,2,FALSE)/(2.5)*D88*(C88)),"") -> 0
E89: =IF(AND(A89>='1 Data'!$B$10,A89<='1 Data'!$B$11),(VLOOKUP("paper",'Factors (to hide)'!A:B,2,FALSE)/(2.5)*D89*(1-C89)+VLOOKUP("recycled paper",'Factors (to hide)'!A:B,2,FALSE)/(2.5)*D89*(C89)),"") -> 0
E90: =IF(AND(A90>='1 Data'!$B$10,A90<='1 Data'!$B$11),(VLOOKUP("paper",'Factors (to hide)'!A:B,2,FALSE)/(2.5)*D90*(1-C90)+VLOOKUP("recycled paper",'Factors (to hide)'!A:B,2,FALSE)/(2.5)*D90*(C90)),"") -> 0
E91: =IF(AND(A91>='1 Data'!$B$10,A91<='1 Data'!$B$11),(VLOOKUP("paper",'Factors (to hide)'!A:B,2,FALSE)/(2.5)*D91*(1-C91)+VLOOKUP("recycled paper",'Factors (to hide)'!A:B,2,FALSE)/(2.5)*D91*(C91)),"") -> 0
E92: =IF(AND(A92>='1 Data'!$B$10,A92<='1 Data'!$B$11),(VLOOKUP("paper",'Factors (to hide)'!A:B,2,FALSE)/(2.5)*D92*(1-C92)+VLOOKUP("recycled paper",'Factors (to hide)'!A:B,2,FALSE)/(2.5)*D92*(C92)),"") -> 0
E93: =IF(AND(A93>='1 Data'!$B$10,A93<='1 Data'!$B$11),(VLOOKUP("paper",'Factors (to hide)'!A:B,2,FALSE)/(2.5)*D93*(1-C93)+VLOOKUP("recycled paper",'Factors (to hide)'!A:B,2,FALSE)/(2.5)*D93*(C93)),"") -> 0
E94: =IF(AND(A94>='1 Data'!$B$10,A94<='1 Data'!$B$11),(VLOOKUP("paper",'Factors (to hide)'!A:B,2,FALSE)/(2.5)*D94*(1-C94)+VLOOKUP("recycled paper",'Factors (to hide)'!A:B,2,FALSE)/(2.5)*D94*(C94)),"") -> 0
E95: =IF(AND(A95>='1 Data'!$B$10,A95<='1 Data'!$B$11),(VLOOKUP("paper",'Factors (to hide)'!A:B,2,FALSE)/(2.5)*D95*(1-C95)+VLOOKUP("recycled paper",'Factors (to hide)'!A:B,2,FALSE)/(2.5)*D95*(C95)),"") -> 0
E96: =IF(AND(A96>='1 Data'!$B$10,A96<='1 Data'!$B$11),(VLOOKUP("paper",'Factors (to hide)'!A:B,2,FALSE)/(2.5)*D96*(1-C96)+VLOOKUP("recycled paper",'Factors (to hide)'!A:B,2,FALSE)/(2.5)*D96*(C96)),"") -> 0
E97: =IF(AND(A97>='1 Data'!$B$10,A97<='1 Data'!$B$11),(VLOOKUP("paper",'Factors (to hide)'!A:B,2,FALSE)/(2.5)*D97*(1-C97)+VLOOKUP("recycled paper",'Factors (to hide)'!A:B,2,FALSE)/(2.5)*D97*(C97)),"") -> 0
E98: =IF(AND(A98>='1 Data'!$B$10,A98<='1 Data'!$B$11),(VLOOKUP("paper",'Factors (to hide)'!A:B,2,FALSE)/(2.5)*D98*(1-C98)+VLOOKUP("recycled paper",'Factors (to hide)'!A:B,2,FALSE)/(2.5)*D98*(C98)),"") -> 0
E99: =IF(AND(A99>='1 Data'!$B$10,A99<='1 Data'!$B$11),(VLOOKUP("paper",'Factors (to hide)'!A:B,2,FALSE)/(2.5)*D99*(1-C99)+VLOOKUP("recycled paper",'Factors (to hide)'!A:B,2,FALSE)/(2.5)*D99*(C99)),"") -> 0
E100: =IF(AND(A100>='1 Data'!$B$10,A100<='1 Data'!$B$11),(VLOOKUP("paper",'Factors (to hide)'!A:B,2,FALSE)/(2.5)*D100*(1-C100)+VLOOKUP("recycled paper",'Factors (to hide)'!A:B,2,FALSE)/(2.5)*D100*(C100)),"") -> 0

Sheet 13 PV Solar
A1: =+'1 Data'!B8 -> The Example Company | G1: Data Complete?
A2: ="For the period from "&TEXT('1 Data'!B10,"d mmmm yyyy")&" to "&TEXT('1 Data'!B11,"d mmmm yyyy") -> For the period from 0 January 1900 to 0 January 1900 | G2: No
A3: Solar Photovoltaic (PV) electricity generated
A5: Record here all solar power (pv) electricity generated. Include date and reading at start of period.
A8: Total for period | D8: =SUM(D11:D25) -> 0 | F8: =SUM(F11:F25) -> 0 | G8: =SUM(G11:G25) -> 0
A9: Date | B9: Meter reading kWh | C9: Electricity units on bill kWh | D9: Electricity this period kWh | E9: Percentage business | F9: Business use in period kWh | G9: CO2e Kg
H10: < date and reading at start of first period
C11: =IF(B11>0,+B11-B10,0) -> 0 | D11: =IF($A10>0,MAX(+$A11-$A10-MAX('1 Data'!$B$10-1-$A10,0)-MAX($A11-'1 Data'!$B$11,0),0)*$C11/($A11-$A10),0) -> 0 | E11: 1 | F11: =+D11*E11 -> 0 | G11: =F11*VLOOKUP("Electricity",'Factors (to hide)'!A:B,2,FALSE) -> 0 | H11: < date and reading at end of first period
C12: 0 | D12: =IF($A11>0,MAX(+$A12-$A11-MAX('1 Data'!$B$10-1-$A11,0)-MAX($A12-'1 Data'!$B$11,0),0)*$C12/($A12-$A11),0) -> 0 | E12: 1 | F12: =+D12*E12 -> 0 | G12: =F12*VLOOKUP("Electricity",'Factors (to hide)'!A:B,2,FALSE) -> 0 | H12: < date and reading at end of second period
C13: 0 | D13: =IF($A12>0,MAX(+$A13-$A12-MAX('1 Data'!$B$10-1-$A12,0)-MAX($A13-'1 Data'!$B$11,0),0)*$C13/($A13-$A12),0) -> 0 | E13: 1 | F13: 0 | G13: =F13*VLOOKUP("Electricity",'Factors (to hide)'!A:B,2,FALSE) -> 0 | H13: < date and reading at end of third period
C14: 0 | D14: =IF($A13>0,MAX(+$A14-$A13-MAX('1 Data'!$B$10-1-$A13,0)-MAX($A14-'1 Data'!$B$11,0),0)*$C14/($A14-$A13),0) -> 0 | E14: 1 | F14: 0 | G14: =F14*VLOOKUP("Electricity",'Factors (to hide)'!A:B,2,FALSE) -> 0 | H14: etc.
C15: 0 | D15: =IF($A14>0,MAX(+$A15-$A14-MAX('1 Data'!$B$10-1-$A14,0)-MAX($A15-'1 Data'!$B$11,0),0)*$C15/($A15-$A14),0) -> 0 | E15: 1 | F15: 0 | G15: =F15*VLOOKUP("Electricity",'Factors (to hide)'!A:B,2,FALSE) -> 0
C16: 0 | D16: =IF($A15>0,MAX(+$A16-$A15-MAX('1 Data'!$B$10-1-$A15,0)-MAX($A16-'1 Data'!$B$11,0),0)*$C16/($A16-$A15),0) -> 0 | E16: 1 | F16: 0 | G16: =F16*VLOOKUP("Electricity",'Factors (to hide)'!A:B,2,FALSE) -> 0
C17: 0 | D17: =IF($A16>0,MAX(+$A17-$A16-MAX('1 Data'!$B$10-1-$A16,0)-MAX($A17-'1 Data'!$B$11,0),0)*$C17/($A17-$A16),0) -> 0 | E17: 1 | F17: 0 | G17: =F17*VLOOKUP("Electricity",'Factors (to hide)'!A:B,2,FALSE) -> 0
C18: 0 | D18: =IF($A17>0,MAX(+$A18-$A17-MAX('1 Data'!$B$10-1-$A17,0)-MAX($A18-'1 Data'!$B$11,0),0)*$C18/($A18-$A17),0) -> 0 | E18: 1 | F18: 0 | G18: =F18*VLOOKUP("Electricity",'Factors (to hide)'!A:B,2,FALSE) -> 0
C19: 0 | D19: =IF($A18>0,MAX(+$A19-$A18-MAX('1 Data'!$B$10-1-$A18,0)-MAX($A19-'1 Data'!$B$11,0),0)*$C19/($A19-$A18),0) -> 0 | E19: 1 | F19: 0 | G19: =F19*VLOOKUP("Electricity",'Factors (to hide)'!A:B,2,FALSE) -> 0
C20: 0 | D20: =IF($A19>0,MAX(+$A20-$A19-MAX('1 Data'!$B$10-1-$A19,0)-MAX($A20-'1 Data'!$B$11,0),0)*$C20/($A20-$A19),0) -> 0 | E20: 1 | F20: 0 | G20: =F20*VLOOKUP("Electricity",'Factors (to hide)'!A:B,2,FALSE) -> 0
C21: 0 | D21: =IF($A20>0,MAX(+$A21-$A20-MAX('1 Data'!$B$10-1-$A20,0)-MAX($A21-'1 Data'!$B$11,0),0)*$C21/($A21-$A20),0) -> 0 | E21: 1 | F21: 0 | G21: =F21*VLOOKUP("Electricity",'Factors (to hide)'!A:B,2,FALSE) -> 0
C22: 0 | D22: =IF($A21>0,MAX(+$A22-$A21-MAX('1 Data'!$B$10-1-$A21,0)-MAX($A22-'1 Data'!$B$11,0),0)*$C22/($A22-$A21),0) -> 0 | E22: 1 | F22: 0 | G22: =F22*VLOOKUP("Electricity",'Factors (to hide)'!A:B,2,FALSE) -> 0
C23: 0 | D23: =IF($A22>0,MAX(+$A23-$A22-MAX('1 Data'!$B$10-1-$A22,0)-MAX($A23-'1 Data'!$B$11,0),0)*$C23/($A23-$A22),0) -> 0 | E23: 1 | F23: 0 | G23: =F23*VLOOKUP("Electricity",'Factors (to hide)'!A:B,2,FALSE) -> 0
C24: 0 | D24: =IF($A23>0,MAX(+$A24-$A23-MAX('1 Data'!$B$10-1-$A23,0)-MAX($A24-'1 Data'!$B$11,0),0)*$C24/($A24-$A23),0) -> 0 | E24: 1 | F24: 0 | G24: =F24*VLOOKUP("Electricity",'Factors (to hide)'!A:B,2,FALSE) -> 0
C25: 0 | D25: =IF($A24>0,MAX(+$A25-$A24-MAX('1 Data'!$B$10-1-$A24,0)-MAX($A25-'1 Data'!$B$11,0),0)*$C25/($A25-$A24),0) -> 0 | E25: 1 | F25: 0 | G25: =F25*VLOOKUP("Electricity",'Factors (to hide)'!A:B,2,FALSE) -> 0

Sheet Questionnaire - Carbon accounts
A1: Carbon Accounting - Questionnaire | B1: Answers (complete yellow cells)
A3: Data for carbon accounting
A4: How much of your energy is renewable? (%) | B4: [type details here]
A5: What vehicles does your organisation use? Please list vehicle type (i.e. cars, vans etc.) | B5: [type details here]
A6: What are the CO2 emissions for each vehicle? (g/km) | B6: [type details here]
A7: Do you use waste veg oil to fuel any of the vehicles? | B7: [type details here]
A9: Electricity use
A10: Please supply details on the appliances your business currently uses, along with details on their power (kWh) and usage. | B10: Quantity of appliances
A11: Laptops
A12: Monitors
A13: Telephones
A14: Modems
A15: Lights
A16: Kettle
A17: Other (please specify)
A18: Other (please specify)
A19: Other (please specify)
A20: Other (please specify)
A21: Other (please specify)
A23: Commute (use more rows as need be, use 2 or more rows for employees with varying transport) | B23: Commute distance (miles) | C23: Transport Method
A24: Employee 1
A25: Employee 2
A26: Employee 3
A27: Employee 4
A28: Employee 5
A30: Other energy use:
A31: Gas: Approximately what is the insulation factor for your premises? (please select) | B31: average
A32: Paper: Approximately how much paper have you used during the accounting period? (please give quantity in number of packets) | B32: [type details here]
A33: What % of the paper used is recycled? | B33: [type details here]
A34: N.B. 1 packet = approximately a ream of 500 sheets (30 x 21.4 x 5.4cm, 2.5kg)
A35: Water use: Do you think your water usage is…? (please select option) | B35: average
A36: PV Solar approximately how much of your electricity is PV? (kWh) | B36: [type details here]
A37: Cabon Offsetting purchased (tonnes of CO2e) | B37: [type details here]
A38: % electricity bought that is green tarriff | B38: [type details here]
